Workbook

Sheet تعريفات
A1: رقم السائق | B1: اسم السائق | C1: رقم المركبة | D1: النوع | E1: ملاحظات
A2: 1 | B2: محي الدين | C2: 61598
A3: 2 | B3: محمد الرواجيح | C3: 61592
A4: 3 | B4: جهاد شاهين | C4: 59490
A5: 4 | B5: منصور عيد | C5: 61613
A6: 5 | B6: محمود عايد | C6: 61460
A7: 6 | B7: منيف عايد | C7: 61463
A8: 7 | B8: علي عبدالله | C8: 61457
A9: 8 | B9: فايز علي | C9: 59484
A10: 9 | B10: سليمان خضير | C10: 61580
A11: 10 | B11: فؤاد عيسى | C11: 61586
A12: 11 | B12: عيد هليل | C12: 61634
A13: 12 | B13: سعيد سلمان | C13: 59481
A14: 13 | B14: فندي محمد | C14: 61601
A15: 14 | B15: سليمان عطالله | C15: 61454
A16: 15 | B16: طارق خليف | C16: 61628
A17: 16 | B17: حسين اللوافية | C17: 61589
A18: 17 | B18: هاني محمد | C18: 59478
A19: 18 | B19: خالد القيسي | C19: 61622
A20: 19 | B20: بسام عودة | C20: 61625
A21: 20 | B21: عبدالله سالم | C21: 61640
A22: 21 | B22: حسن يوسف | C22: 6567
A23: 22 | B23: علي حمد | C23: 61637
A24: 23 | B24: محمد عريبان | C24: 61595
A25: 24 | B25: هايل الركيبات | C25: 61610
A26: 25 | B26: صلاح الركيبات | C26: 61619
A27: 26 | B27: محمود الرفايعة | C27: 61607
A28: 27 | B28: محمد سلامة | C28: 59487
A29: 28 | B29: رفيق البدور | C29: 61631
A30: 29 | B30: محمد المغربي | C30: 61451
A31: 30 | B31: فؤاد الرفايعة | C31: 61604
A32: 31 | B32: محمد علي | C32: 35577
A33: 32 | B33: محمد علي | C33: 39532
A34: 33 | B34: محمد سلامة | C34: 61454
A35: 34 | B35: محمد علي | C35: 61586
A36: 35 | B36: مهدي عطالله | C36: 61604
A37: 36 | B37: فؤاد الرفايعة | C37: 39532
A38: 37 | B38: فؤاد الرفايعة | C38: 61592
A39: 38 | B39: محمد علي | C39: 61604
A40: 39 | B40: حسن يوسف | C40: 61460
A41: 40 | B41: منيف عايد | C41: 61604
A42: 41 | B42: ايمن الزواهرة | C42: 6567
A43: 42 | B43: رفيق البدور | C43: 61604
A44: 43 | B44: منيف عايد | C44: 61457
A45: 44 | B45: طارق خليف | C45: 59481
A46: 45 | B46: هارون كايد | C46: 59481
A47: 46 | B47: ايمن الزواهرة | C47: 35577
A48: 47 | B48: فؤاد الرفايعة | C48: 61625
A49: 48 | B49: منيف عايد | C49: 61460
A50: 49 | B50: حسن يوسف | C50: 59481
A51: 50 | B51: ايمن الزواهرة | C51: 59481
A52: 51 | B52: منيف عايد | C52: 59481
A53: 52 | B53: ايمن الزواهرة | C53: 39532
A54: 53 | B54: حسن يوسف | C54: 61604
A55: 54 | B55: محمد سلامة | C55: 39532
A56: 55 | B56: منيف عايد | C56: 61601
A57: 56 | B57: طارق خليف | C57: 61460
A58: 57 | B58: ايمن الزواهرة | C58: 61625
A59: 58 | B59: ايمن الزواهرة | C59: 61586
A60: 59 | B60: محمد سلامة | C60: 61457
A61: 60 | B61: ايمن الزواهرة | C61: 61607
A62: 61 | B62: ايمن الزواهرة | C62: 61598
A63: 62 | B63: حسين اللوافية | C63: 61625
A64: 63 | B64: عبدالرزاق الهباهبة | C64: 39532
A65: 64 | B65: عبدالرزاق الهباهبة | C65: 48581
A66: 65 | B66: محمد علي | C66: 48610
A67: 66 | B67: طارق خليف | C67: 61625
A68: 67 | B68: فؤاد الرفايعة | C68: 61607
A69: 68 | B69: محمد سلامة | C69: 59481
A70: 69 | B70: محمود عايد | C70: 61631
A71: 70 | B71: محمود عايد | C71: 59481
A72: 71 | B72: عبدالرزاق الهباهبة | C72: 61625
A73: 72 | B73: محمد علي | C73: 34617
A74: 73 | B74: حسين اللوافية | C74: 59481
A75: 74 | B75: انور الصلاحات | C75: 39532
A76: 75 | B76: حسين اللوافية | C76: 6567
A77: 76 | B77: حسين اللوافية | C77: 48581
A78: 77 | B78: حسين اللوافية | C78: 48610
A79: 78 | B79: حسين اللوافية | C79: 61610
A80: 79 | B80: حسن يوسف | C80: 34617
A81: 80 | B81: حسين اللوافية | C81: 61619
A82: 81 | B82: ايمن الزواهرة | C82: 61631
A83: 82 | B83: ايمن الزواهرة | C83: 48407
A84: 83 | B84: حسن يوسف | C84: 61631
A85: 84 | B85: ايمن الزواهرة | C85: 48610
A86: 85 | B86: هارون كايد | C86: 61586
A87: 86 | B87: محمد قنديل | C87: 59481
A88: 87 | B88: خالد السردي | C88: 61622
A89: 88 | B89: محمد السردي | C89: 61454
A90: 89 | B90: نضال الحرباوي | C90: 61457
A91: 90 | B91: عبدالرحمن احمد | C91: 61589
A92: 91 | B92: محمود عايد | C92: 6567
A93: 92 | B93: نضال الحرباوي | C93: 61622
A94: 93 | B94: عبدالرحمن احمد | C94: 61631
A95: 94 | B95: سليمان خضير | C95: 61631
A96: 95 | B96: فندي محمد | C96: 6567
A97: 96 | B97: فندي محمد | C97: 59484
A98: 97 | B98: محمد علي | C98: 48581
A99: 98 | B99: هاني محمد | C99: 61631
A100: 99 | B100: طارق خليف | C100: 61640
A101: 100 | B101: فراس يعقوب | C101: 34617
A102: 101 | B102: محمد علي | C102: 61631
A103: 102 | B103: محمد الرواجيح | C103: 61622
A104: 103 | B104: سليمان عطالله | C104: 61586
A105: 104 | B105: حسن يوسف | C105: 61622
A106: 105 | B106: محمد سلامة | C106: 61610
A107: 106 | B107: صلاح الركيبات | C107: 61637
A108: 107 | B108: ايمن الزواهرة | C108: 61640
A109: 108 | B109: صلاح الركيبات | C109: 61622
A110: 109 | B110: صلاح الركيبات | C110: 48407
A111: 110 | B111: طارق خليف | C111: 35577
A112: 111 | B112: ايمن الزواهرة | C112: 59484
A113: 112 | B113: ايمن الزواهرة | C113: 61454
A114: 113 | B114: عبدالرحمن احمد | C114: 34617
A115: 114
A116: 115
A117: 116

Sheet 01-2022
B2: كشف تحميل وتفريغ مادة حامض الفسفوريك شهر 01-2022
A3: التاريخ | B3: التسلسل | C3: التسلسل | D3: التاريخ | E3: رقم السائق | F3: اسم السائق | G3: رقم المركبة | H3: رقم البون | I3: ارسالية تحميل | J3: فارغ تحميل | K3: قائم تحميل | L3: وزن التحميل | M3: ارسالية تفريغ | N3: فارغ تفريغ | O3: قائم تفريغ | P3: وزن التفريغ | Q3: الفرق | R3: ملاحظات
A4: =D4 -> 2022-01-01 | B4: 1 | C4: 1 | D4: 2022-01-01 | E4: 15 | F4: =IF(ISNA(VLOOKUP(E4,تعريفات!$A$2:$B$600,2,FALSE))," ",VLOOKUP(E4,تعريفات!$A$2:$B$600,2,FALSE)) -> طارق خليف | G4: =IF(E4="","",IFERROR(_xlfn.SINGLE(Singlecellextract(F4,تعريفات!$B$2:$C$1000,2)),"")) -> 61628, 59481, 61460, 61625, 61640, 35577 | H4: 38775 | I4: 282201 | J4: 17440 | K4: 56040 | L4: =K4-J4 -> 38600 | M4: 159109 | N4: 17600 | O4: 56180 | P4: =O4-N4 -> 38580 | Q4: =P4-L4 -> -20
A5: =D5 -> 2022-01-01 | B5: =B4+1 -> 2 | C5: 2 | D5: 2022-01-01 | E5: 24 | F5: =IF(ISNA(VLOOKUP(E5,تعريفات!$A$2:$B$600,2,FALSE))," ",VLOOKUP(E5,تعريفات!$A$2:$B$600,2,FALSE)) -> هايل الركيبات | G5: =IF(E5="","",IFERROR(Singlecellextract(F5,تعريفات!$B$2:$C$1000,2),"")) -> 61610 | H5: 38776 | I5: 282204 | J5: 17420 | K5: 55720 | L5: =K5-J5 -> 38300 | M5: 159108 | N5: 17440 | O5: 55820 | P5: =O5-N5 -> 38380 | Q5: 80
A6: 2022-01-01 | B6: =B5+1 -> 3 | C6: 3 | D6: 2022-01-01 | E6: 19 | F6: =IF(ISNA(VLOOKUP(E6,تعريفات!$A$2:$B$600,2,FALSE))," ",VLOOKUP(E6,تعريفات!$A$2:$B$600,2,FALSE)) -> بسام عودة | G6: =IF(E6="","",IFERROR(_xlfn.SINGLE(Singlecellextract(F6,تعريفات!$B$2:$C$1000,2)),"")) -> 61625 | H6: 38777 | I6: 282207 | J6: 17280 | K6: 55680 | L6: 38400 | M6: 159113 | N6: 17300 | O6: 55820 | P6: 38520 | Q6: 120
A7: 2022-01-01 | B7: 4 | C7: 4 | D7: 2022-01-01 | E7: 8 | F7: =IF(ISNA(VLOOKUP(E7,تعريفات!$A$2:$B$600,2,FALSE))," ",VLOOKUP(E7,تعريفات!$A$2:$B$600,2,FALSE)) -> فايز علي | G7: =IF(E7="","",IFERROR(_xlfn.SINGLE(Singlecellextract(F7,تعريفات!$B$2:$C$1000,2)),"")) -> 59484 | H7: 38778 | I7: 282209 | J7: 17480 | K7: 55860 | L7: 38380 | M7: 159111 | N7: 17660 | O7: 56140 | P7: 38480 | Q7: 100
A8: 2022-01-01 | B8: 5 | C8: 5 | D8: 2022-01-01 | E8: 17 | F8: =IF(ISNA(VLOOKUP(E8,تعريفات!$A$2:$B$600,2,FALSE))," ",VLOOKUP(E8,تعريفات!$A$2:$B$600,2,FALSE)) -> هاني محمد | G8: =IF(E8="","",IFERROR(_xlfn.SINGLE(Singlecellextract(F8,تعريفات!$B$2:$C$1000,2)),"")) -> 59478, 61631 | H8: 38779 | I8: 282211 | J8: 17580 | K8: 55640 | L8: 38060 | M8: 159115 | N8: 17580 | O8: 55820 | P8: 38240 | Q8: 180
A9: 2022-01-01 | B9: 6 | C9: 6 | D9: 2022-01-01 | E9: 20 | F9: =IF(ISNA(VLOOKUP(E9,تعريفات!$A$2:$B$600,2,FALSE))," ",VLOOKUP(E9,تعريفات!$A$2:$B$600,2,FALSE)) -> عبدالله سالم | G9: =IF(E9="","",IFERROR(_xlfn.SINGLE(Singlecellextract(F9,تعريفات!$B$2:$C$1000,2)),"")) -> 61640 | H9: 38780 | I9: 282213 | J9: 17160 | K9: 55600 | L9: 38440 | M9: 159118 | N9: 17120 | O9: 55780 | P9: 38660 | Q9: 220
A10: 2022-01-01 | B10: 7 | C10: 7 | D10: 2022-01-01 | E10: 22 | F10: =IF(ISNA(VLOOKUP(E10,تعريفات!$A$2:$B$600,2,FALSE))," ",VLOOKUP(E10,تعريفات!$A$2:$B$600,2,FALSE)) -> علي حمد | G10: =IF(E10="","",IFERROR(_xlfn.SINGLE(Singlecellextract(F10,تعريفات!$B$2:$C$1000,2)),"")) -> 61637 | H10: 38781 | I10: 282214 | J10: 17540 | K10: 55860 | L10: 38320 | M10: 159126 | N10: 17440 | O10: 55880 | P10: 38440 | Q10: 120
A11: 2022-01-01 | B11: 8 | C11: 8 | D11: 2022-01-01 | E11: 25 | F11: =IF(ISNA(VLOOKUP(E11,تعريفات!$A$2:$B$600,2,FALSE))," ",VLOOKUP(E11,تعريفات!$A$2:$B$600,2,FALSE)) -> صلاح الركيبات | G11: =IF(E11="","",IFERROR(_xlfn.SINGLE(Singlecellextract(F11,تعريفات!$B$2:$C$1000,2)),"")) -> 61619, 61637, 61622, 48407 | H11: 38782 | I11: 282219 | J11: 171000 | K11: 55800 | L11: -115200 | M11: 159125 | N11: 17580 | O11: 56000 | P11: 38420 | Q11: 153620
A12: 2022-01-01 | B12: 9 | C12: 9 | D12: 2022-01-01 | E12: 21 | F12: =IF(ISNA(VLOOKUP(E12,تعريفات!$A$2:$B$600,2,FALSE))," ",VLOOKUP(E12,تعريفات!$A$2:$B$600,2,FALSE)) -> حسن يوسف | G12: =IF(E12="","",IFERROR(_xlfn.SINGLE(Singlecellextract(F12,تعريفات!$B$2:$C$1000,2)),"")) -> 6567, 61460, 59481, 61604, 34617, 61631, 61622 | H12: 38783 | I12: 282218 | J12: 18420 | K12: 55640 | L12: 37220 | M12: 159130 | N12: 18520 | O12: 55860 | P12: 37340 | Q12: 120
A13: 2022-01-01 | B13: 10 | C13: 10 | D13: 2022-01-01 | E13: 26 | F13: =IF(ISNA(VLOOKUP(E13,تعريفات!$A$2:$B$600,2,FALSE))," ",VLOOKUP(E13,تعريفات!$A$2:$B$600,2,FALSE)) -> محمود الرفايعة | G13: =IF(E13="","",IFERROR(_xlfn.SINGLE(Singlecellextract(F13,تعريفات!$B$2:$C$1000,2)),"")) -> 61607 | H13: 38784 | I13: 282220 | J13: 17380 | K13: 55360 | L13: 37980 | M13: 159122 | N13: 17480 | O13: 55800 | P13: 38320 | Q13: 340
A14: 2022-01-01 | B14: 11 | C14: 11 | D14: 2022-01-01 | E14: 28 | F14: =IF(ISNA(VLOOKUP(E14,تعريفات!$A$2:$B$600,2,FALSE))," ",VLOOKUP(E14,تعريفات!$A$2:$B$600,2,FALSE)) -> رفيق البدور | G14: =IF(E14="","",IFERROR(_xlfn.SINGLE(Singlecellextract(F14,تعريفات!$B$2:$C$1000,2)),"")) -> 61631, 61604 | H14: 38785 | I14: 282222 | J14: 17060 | K14: 55760 | L14: 38700 | M14: 159123 | N14: 17160 | O14: 55960 | P14: 38800 | Q14: 100
A15: 2022-01-01 | B15: 12 | C15: 12 | D15: 2022-01-01 | E15: 30 | F15: =IF(ISNA(VLOOKUP(E15,تعريفات!$A$2:$B$600,2,FALSE))," ",VLOOKUP(E15,تعريفات!$A$2:$B$600,2,FALSE)) -> فؤاد الرفايعة | G15: =IF(E15="","",IFERROR(_xlfn.SINGLE(Singlecellextract(F15,تعريفات!$B$2:$C$1000,2)),"")) -> 61604, 39532, 61592, 61625, 61607 | H15: 38786 | I15: 282221 | J15: 17160 | K15: 551000 | L15: 533840 | M15: 159124 | N15: 17260 | O15: 55800 | P15: 38540 | Q15: -495300
A16: 2022-01-01 | B16: 13 | C16: 13 | D16: 2022-01-01 | E16: 29 | F16: =IF(ISNA(VLOOKUP(E16,تعريفات!$A$2:$B$600,2,FALSE))," ",VLOOKUP(E16,تعريفات!$A$2:$B$600,2,FALSE)) -> محمد المغربي | G16: =IF(E16="","",IFERROR(_xlfn.SINGLE(Singlecellextract(F16,تعريفات!$B$2:$C$1000,2)),"")) -> 61451 | H16: 38787 | I16: 282223 | J16: 17780 | K16: 55840 | L16: 38060 | M16: 159121 | N16: 17720 | O16: 55960 | P16: 38240 | Q16: 180
A17: 2022-01-01 | B17: 14 | C17: 14 | D17: 2022-01-01 | E17: 13 | F17: =IF(ISNA(VLOOKUP(E17,تعريفات!$A$2:$B$600,2,FALSE))," ",VLOOKUP(E17,تعريفات!$A$2:$B$600,2,FALSE)) -> فندي محمد | G17: =IF(E17="","",IFERROR(_xlfn.SINGLE(Singlecellextract(F17,تعريفات!$B$2:$C$1000,2)),"")) -> 61601, 6567, 59484 | H17: 38788 | I17: 282236 | J17: 17180 | K17: 55780 | L17: 38600 | M17: 159133 | N17: 17060 | O17: 55820 | P17: 38760 | Q17: 160
A18: 2022-01-01 | B18: 15 | C18: 15 | D18: 2022-01-01 | E18: 1 | F18: =IF(ISNA(VLOOKUP(E18,تعريفات!$A$2:$B$600,2,FALSE))," ",VLOOKUP(E18,تعريفات!$A$2:$B$600,2,FALSE)) -> محي الدين | G18: =IF(E18="","",IFERROR(_xlfn.SINGLE(Singlecellextract(F18,تعريفات!$B$2:$C$1000,2)),"")) -> 61598 | H18: 38789 | I18: 282238 | J18: 17700 | K18: 55880 | L18: 38180 | M18: 159140 | N18: 17760 | O18: 55920 | P18: 38160 | Q18: -20
A19: 2022-01-01 | B19: 16 | C19: 16 | D19: 2022-01-01 | E19: 20 | F19: =IF(ISNA(VLOOKUP(E19,تعريفات!$A$2:$B$600,2,FALSE))," ",VLOOKUP(E19,تعريفات!$A$2:$B$600,2,FALSE)) -> عبدالله سالم | G19: =IF(E19="","",IFERROR(_xlfn.SINGLE(Singlecellextract(F19,تعريفات!$B$2:$C$1000,2)),"")) -> 61640 | H19: 38790 | I19: 282243 | J19: 17700 | K19: 55920 | L19: 38220 | M19: 159145 | N19: 17720 | O19: 56000 | P19: 38280 | Q19: 60
A20: 2022-01-01 | B20: 17 | C20: 17 | D20: 2022-01-01 | E20: 5 | F20: =IF(ISNA(VLOOKUP(E20,تعريفات!$A$2:$B$600,2,FALSE))," ",VLOOKUP(E20,تعريفات!$A$2:$B$600,2,FALSE)) -> محمود عايد | G20: =IF(E20="","",IFERROR(_xlfn.SINGLE(Singlecellextract(F20,تعريفات!$B$2:$C$1000,2)),"")) -> 61460, 61631, 59481, 6567 | H20: 38791 | I20: 282249 | J20: 17680 | K20: 55660 | L20: 37980 | M20: 159149 | N20: 17420 | O20: 55560 | P20: 38140 | Q20: 160
A21: 2022-01-01 | B21: 18 | C21: 18 | D21: 2022-01-01 | E21: 4 | F21: =IF(ISNA(VLOOKUP(E21,تعريفات!$A$2:$B$600,2,FALSE))," ",VLOOKUP(E21,تعريفات!$A$2:$B$600,2,FALSE)) -> منصور عيد | G21: =IF(E21="","",IFERROR(_xlfn.SINGLE(Singlecellextract(F21,تعريفات!$B$2:$C$1000,2)),"")) -> 61613 | H21: 38792 | I21: 282252 | J21: 17740 | K21: 56000 | L21: 38260 | M21: 159166 | N21: 17720 | O21: 55980 | P21: 38260 | Q21: 0
A22: 2022-01-01 | B22: 19 | C22: 19 | D22: 2022-01-01 | E22: 2 | F22: =IF(ISNA(VLOOKUP(E22,تعريفات!$A$2:$B$600,2,FALSE))," ",VLOOKUP(E22,تعريفات!$A$2:$B$600,2,FALSE)) -> محمد الرواجيح | G22: =IF(E22="","",IFERROR(_xlfn.SINGLE(Singlecellextract(F22,تعريفات!$B$2:$C$1000,2)),"")) -> 61592, 61622 | H22: 38793 | I22: 282254 | J22: 17400 | K22: 56060 | L22: 38660 | M22: 159152 | N22: 17180 | O22: 55820 | P22: 38640 | Q22: -20
A23: 2022-01-01 | B23: 20 | C23: 20 | D23: 2022-01-01 | E23: 6 | F23: =IF(ISNA(VLOOKUP(E23,تعريفات!$A$2:$B$600,2,FALSE))," ",VLOOKUP(E23,تعريفات!$A$2:$B$600,2,FALSE)) -> منيف عايد | G23: =IF(E23="","",IFERROR(_xlfn.SINGLE(Singlecellextract(F23,تعريفات!$B$2:$C$1000,2)),"")) -> 61463, 61604, 61457, 61460, 59481, 61601 | H23: 38794 | I23: 282255 | J23: 17340 | K23: 55700 | L23: 38360 | M23: 159161 | N23: 17180 | O23: 55600 | P23: 38420 | Q23: 60
A24: 2022-01-01 | B24: 21 | C24: 21 | D24: 2022-01-01 | E24: 16 | F24: =IF(ISNA(VLOOKUP(E24,تعريفات!$A$2:$B$600,2,FALSE))," ",VLOOKUP(E24,تعريفات!$A$2:$B$600,2,FALSE)) -> حسين اللوافية | G24: =IF(E24="","",IFERROR(_xlfn.SINGLE(Singlecellextract(F24,تعريفات!$B$2:$C$1000,2)),"")) -> 61589, 61625, 59481, 6567, 48581, 48610, 61610, 61619 | H24: 38795 | I24: 282256 | J24: 17100 | K24: 55740 | L24: 38640 | M24: 159157 | N24: 17100 | O24: 55700 | P24: 38600 | Q24: -40
A25: 2022-01-01 | B25: 22 | C25: 22 | D25: 2022-01-01 | E25: 23 | F25: =IF(ISNA(VLOOKUP(E25,تعريفات!$A$2:$B$600,2,FALSE))," ",VLOOKUP(E25,تعريفات!$A$2:$B$600,2,FALSE)) -> محمد عريبان | G25: =IF(E25="","",IFERROR(_xlfn.SINGLE(Singlecellextract(F25,تعريفات!$B$2:$C$1000,2)),"")) -> 61595 | H25: 38796 | I25: 282258 | J25: 17380 | K25: 55900 | L25: 38520 | M25: 159163 | N25: 17360 | O25: 55840 | P25: 38480 | Q25: -40
A26: 2022-01-01 | B26: =B25+1 -> 23 | C26: 23 | D26: 2022-01-01 | E26: 31 | F26: =IF(ISNA(VLOOKUP(E26,تعريفات!$A$2:$B$600,2,FALSE))," ",VLOOKUP(E26,تعريفات!$A$2:$B$600,2,FALSE)) -> محمد علي | G26: =IF(E26="","",IFERROR(_xlfn.SINGLE(Singlecellextract(F26,تعريفات!$B$2:$C$1000,2)),"")) -> 35577, 39532, 61586, 61604, 48610, 34617, 48581, 61631 | H26: 38797 | I26: 282261 | J26: 19580 | K26: 55860 | L26: 36280 | M26: 159159 | N26: 19440 | O26: 55680 | P26: 36240 | Q26: -40
A27: 2022-01-01 | B27: 24 | C27: 24 | D27: 2022-01-01 | E27: 3 | F27: =IF(ISNA(VLOOKUP(E27,تعريفات!$A$2:$B$600,2,FALSE))," ",VLOOKUP(E27,تعريفات!$A$2:$B$600,2,FALSE)) -> جهاد شاهين | G27: =IF(E27="","",IFERROR(_xlfn.SINGLE(Singlecellextract(F27,تعريفات!$B$2:$C$1000,2)),"")) -> 59490 | H27: 38798 | I27: 282266 | J27: 17920 | K27: 56000 | L27: 38080 | M27: 159172 | N27: 17740 | O27: 55780 | P27: 38040 | Q27: -40
A28: 2022-01-02 | B28: 25 | C28: 1 | D28: 2022-01-02 | E28: 24 | F28: =IF(ISNA(VLOOKUP(E28,تعريفات!$A$2:$B$600,2,FALSE))," ",VLOOKUP(E28,تعريفات!$A$2:$B$600,2,FALSE)) -> هايل الركيبات | G28: =IF(E28="","",IFERROR(_xlfn.SINGLE(Singlecellextract(F28,تعريفات!$B$2:$C$1000,2)),"")) -> 61610 | H28: 38799 | I28: 282272 | J28: 17540 | K28: 55820 | L28: 38280 | M28: 159177 | N28: 17480 | O28: 55640 | P28: 38160 | Q28: -120
A29: 2022-01-02 | B29: 26 | C29: 2 | D29: 2022-01-02 | E29: 10 | F29: =IF(ISNA(VLOOKUP(E29,تعريفات!$A$2:$B$600,2,FALSE))," ",VLOOKUP(E29,تعريفات!$A$2:$B$600,2,FALSE)) -> فؤاد عيسى | G29: =IF(E29="","",IFERROR(_xlfn.SINGLE(Singlecellextract(F29,تعريفات!$B$2:$C$1000,2)),"")) -> 61586 | H29: 38800 | I29: 282275 | J29: 17380 | K29: 55700 | L29: 38320 | M29: 159178 | N29: 17460 | O29: 55720 | P29: 38260 | Q29: -60
A30: 2022-01-02 | B30: 27 | C30: 3 | D30: 2022-01-02 | E30: 8 | F30: =IF(ISNA(VLOOKUP(E30,تعريفات!$A$2:$B$600,2,FALSE))," ",VLOOKUP(E30,تعريفات!$A$2:$B$600,2,FALSE)) -> فايز علي | G30: =IF(E30="","",IFERROR(_xlfn.SINGLE(Singlecellextract(F30,تعريفات!$B$2:$C$1000,2)),"")) -> 59484 | H30: 38801 | I30: 282278 | J30: 17580 | K30: 55900 | L30: 38320 | M30: 159182 | N30: 17660 | O30: 55900 | P30: 38240 | Q30: -80
A31: 2022-01-02 | B31: 28 | C31: 4 | D31: 2022-01-02 | E31: 14 | F31: =IF(ISNA(VLOOKUP(E31,تعريفات!$A$2:$B$600,2,FALSE))," ",VLOOKUP(E31,تعريفات!$A$2:$B$600,2,FALSE)) -> سليمان عطالله | G31: =IF(E31="","",IFERROR(_xlfn.SINGLE(Singlecellextract(F31,تعريفات!$B$2:$C$1000,2)),"")) -> 61454, 61586 | H31: 38802 | I31: 282280 | J31: 17440 | K31: 55800 | L31: 38360 | M31: 159186 | N31: 171000 | O31: 55880 | P31: -115120 | Q31: -153480
A32: 2022-01-02 | B32: 29 | C32: 5 | D32: 2022-01-02 | E32: 17 | F32: =IF(ISNA(VLOOKUP(E32,تعريفات!$A$2:$B$600,2,FALSE))," ",VLOOKUP(E32,تعريفات!$A$2:$B$600,2,FALSE)) -> هاني محمد | G32: =IF(E32="","",IFERROR(_xlfn.SINGLE(Singlecellextract(F32,تعريفات!$B$2:$C$1000,2)),"")) -> 59478, 61631 | H32: 38803 | I32: 282282 | J32: 171000 | K32: 55600 | L32: -115400 | M32: 159184 | N32: 17600 | O32: 55620 | P32: 38020 | Q32: 153420
A33: 2022-01-02 | B33: 30 | C33: 6 | D33: 2022-01-02 | E33: 27 | F33: =IF(ISNA(VLOOKUP(E33,تعريفات!$A$2:$B$600,2,FALSE))," ",VLOOKUP(E33,تعريفات!$A$2:$B$600,2,FALSE)) -> محمد سلامة | G33: =IF(E33="","",IFERROR(_xlfn.SINGLE(Singlecellextract(F33,تعريفات!$B$2:$C$1000,2)),"")) -> 59487, 61454, 39532, 61457, 59481, 61610 | H33: 38804 | I33: 282283 | J33: 17800 | K33: 55900 | L33: 38100 | M33: 159187 | N33: 17700 | O33: 55680 | P33: 37980 | Q33: -120
A34: 2022-01-02 | B34: 31 | C34: 7 | D34: 2022-01-02 | E34: 22 | F34: =IF(ISNA(VLOOKUP(E34,تعريفات!$A$2:$B$600,2,FALSE))," ",VLOOKUP(E34,تعريفات!$A$2:$B$600,2,FALSE)) -> علي حمد | G34: =IF(E34="","",IFERROR(_xlfn.SINGLE(Singlecellextract(F34,تعريفات!$B$2:$C$1000,2)),"")) -> 61637 | H34: 38805 | I34: 282284 | J34: 17520 | K34: 55740 | L34: 38220 | M34: 159192 | N34: 17420 | O34: 55640 | P34: 38220 | Q34: 0
A35: 2022-01-02 | B35: 32 | C35: 8 | D35: 2022-01-02 | E35: 25 | F35: =IF(ISNA(VLOOKUP(E35,تعريفات!$A$2:$B$600,2,FALSE))," ",VLOOKUP(E35,تعريفات!$A$2:$B$600,2,FALSE)) -> صلاح الركيبات | G35: =IF(E35="","",IFERROR(_xlfn.SINGLE(Singlecellextract(F35,تعريفات!$B$2:$C$1000,2)),"")) -> 61619, 61637, 61622, 48407 | H35: 38806 | I35: 282285 | J35: 17720 | K35: 55960 | L35: 38240 | M35: 159188 | N35: 17620 | O35: 55820 | P35: 38200 | Q35: -40
A36: 2022-01-02 | B36: 33 | C36: 9 | D36: 2022-01-02 | E36: 9 | F36: =IF(ISNA(VLOOKUP(E36,تعريفات!$A$2:$B$600,2,FALSE))," ",VLOOKUP(E36,تعريفات!$A$2:$B$600,2,FALSE)) -> سليمان خضير | G36: =IF(E36="","",IFERROR(_xlfn.SINGLE(Singlecellextract(F36,تعريفات!$B$2:$C$1000,2)),"")) -> 61580, 61631 | H36: 38807 | I36: 282288 | J36: 17680 | K36: 55960 | L36: 38280 | M36: 159194 | N36: 17780 | O36: 55940 | P36: 38160 | Q36: -120
A37: 2022-01-02 | B37: 34 | C37: 10 | D37: 2022-01-02 | E37: 21 | F37: =IF(ISNA(VLOOKUP(E37,تعريفات!$A$2:$B$600,2,FALSE))," ",VLOOKUP(E37,تعريفات!$A$2:$B$600,2,FALSE)) -> حسن يوسف | G37: =IF(E37="","",IFERROR(_xlfn.SINGLE(Singlecellextract(F37,تعريفات!$B$2:$C$1000,2)),"")) -> 6567, 61460, 59481, 61604, 34617, 61631, 61622 | H37: 38808 | I37: 282287 | J37: 18460 | K37: 55800 | L37: 37340 | M37: 159199 | N37: 181000 | O37: 55780 | P37: -125220 | Q37: -162560
A38: 2022-01-02 | B38: 35 | C38: 11 | D38: 2022-01-02 | E38: 15 | F38: =IF(ISNA(VLOOKUP(E38,تعريفات!$A$2:$B$600,2,FALSE))," ",VLOOKUP(E38,تعريفات!$A$2:$B$600,2,FALSE)) -> طارق خليف | G38: =IF(E38="","",IFERROR(_xlfn.SINGLE(Singlecellextract(F38,تعريفات!$B$2:$C$1000,2)),"")) -> 61628, 59481, 61460, 61625, 61640, 35577 | H38: 38809 | I38: 282295 | J38: 17240 | K38: 55760 | L38: 38520 | M38: 159193 | N38: 17140 | O38: 55660 | P38: 38520 | Q38: 0
A39: 2022-01-02 | B39: 36 | C39: 12 | D39: 2022-01-02 | E39: 28 | F39: =IF(ISNA(VLOOKUP(E39,تعريفات!$A$2:$B$600,2,FALSE))," ",VLOOKUP(E39,تعريفات!$A$2:$B$600,2,FALSE)) -> رفيق البدور | G39: =IF(E39="","",IFERROR(_xlfn.SINGLE(Singlecellextract(F39,تعريفات!$B$2:$C$1000,2)),"")) -> 61631, 61604 | H39: 38810 | I39: 282298 | J39: 17220 | K39: 55600 | L39: 38380 | M39: 159196 | N39: 17160 | O39: 55480 | P39: 38320 | Q39: -60
A40: 2022-01-02 | B40: 37 | C40: 13 | D40: 2022-01-02 | E40: 29 | F40: =IF(ISNA(VLOOKUP(E40,تعريفات!$A$2:$B$600,2,FALSE))," ",VLOOKUP(E40,تعريفات!$A$2:$B$600,2,FALSE)) -> محمد المغربي | G40: =IF(E40="","",IFERROR(_xlfn.SINGLE(Singlecellextract(F40,تعريفات!$B$2:$C$1000,2)),"")) -> 61451 | H40: 38811 | I40: 282300 | J40: 17820 | K40: 55860 | L40: 38040 | M40: 159198 | N40: 17680 | O40: 55700 | P40: 38020 | Q40: -20
A41: 2022-01-02 | B41: 38 | C41: 14 | D41: 2022-01-02 | E41: 30 | F41: =IF(ISNA(VLOOKUP(E41,تعريفات!$A$2:$B$600,2,FALSE))," ",VLOOKUP(E41,تعريفات!$A$2:$B$600,2,FALSE)) -> فؤاد الرفايعة | G41: =IF(E41="","",IFERROR(_xlfn.SINGLE(Singlecellextract(F41,تعريفات!$B$2:$C$1000,2)),"")) -> 61604, 39532, 61592, 61625, 61607 | H41: 38812 | I41: 282302 | J41: 17360 | K41: 55940 | L41: 38580 | M41: 159202 | N41: 17260 | O41: 55800 | P41: 38540 | Q41: -40
A42: 2022-01-02 | B42: 39 | C42: 15 | D42: 2022-01-02 | E42: 5 | F42: =IF(ISNA(VLOOKUP(E42,تعريفات!$A$2:$B$600,2,FALSE))," ",VLOOKUP(E42,تعريفات!$A$2:$B$600,2,FALSE)) -> محمود عايد | G42: =IF(E42="","",IFERROR(_xlfn.SINGLE(Singlecellextract(F42,تعريفات!$B$2:$C$1000,2)),"")) -> 61460, 61631, 59481, 6567 | H42: 38813 | I42: 282303 | J42: 17640 | K42: 55760 | L42: 38120 | M42: 159203 | N42: 17440 | O42: 55420 | P42: 37980 | Q42: -140
A43: 2022-01-02 | B43: 40 | C43: 16 | D43: 2022-01-02 | E43: 26 | F43: =IF(ISNA(VLOOKUP(E43,تعريفات!$A$2:$B$600,2,FALSE))," ",VLOOKUP(E43,تعريفات!$A$2:$B$600,2,FALSE)) -> محمود الرفايعة | G43: =IF(E43="","",IFERROR(_xlfn.SINGLE(Singlecellextract(F43,تعريفات!$B$2:$C$1000,2)),"")) -> 61607 | H43: 38814 | I43: 282304 | J43: 17560 | K43: 55580 | L43: 38020 | M43: 159200 | N43: 17520 | O43: 55540 | P43: 38020 | Q43: 0
A44: 2022-01-02 | B44: 41 | C44: 17 | D44: 2022-01-02 | E44: 2 | F44: =IF(ISNA(VLOOKUP(E44,تعريفات!$A$2:$B$600,2,FALSE))," ",VLOOKUP(E44,تعريفات!$A$2:$B$600,2,FALSE)) -> محمد الرواجيح | G44: =IF(E44="","",IFERROR(_xlfn.SINGLE(Singlecellextract(F44,تعريفات!$B$2:$C$1000,2)),"")) -> 61592, 61622 | H44: 38815 | I44: 282313 | J44: 17300 | K44: 55600 | L44: 38300 | M44: 159209 | N44: 17220 | O44: 551000 | P44: 533780 | Q44: 495480
A45: 2022-01-02 | B45: 42 | C45: 18 | D45: 2022-01-02 | E45: 1 | F45: =IF(ISNA(VLOOKUP(E45,تعريفات!$A$2:$B$600,2,FALSE))," ",VLOOKUP(E45,تعريفات!$A$2:$B$600,2,FALSE)) -> محي الدين | G45: =IF(E45="","",IFERROR(_xlfn.SINGLE(Singlecellextract(F45,تعريفات!$B$2:$C$1000,2)),"")) -> 61598 | H45: 38816 | I45: 282314 | J45: 17720 | K45: 55800 | L45: 38080 | M45: 159220 | N45: 17820 | O45: 55880 | P45: 38060 | Q45: -20
A46: 2022-01-02 | B46: 43 | C46: 19 | D46: 2022-01-02 | E46: 11 | F46: =IF(ISNA(VLOOKUP(E46,تعريفات!$A$2:$B$600,2,FALSE))," ",VLOOKUP(E46,تعريفات!$A$2:$B$600,2,FALSE)) -> عيد هليل | G46: =IF(E46="","",IFERROR(_xlfn.SINGLE(Singlecellextract(F46,تعريفات!$B$2:$C$1000,2)),"")) -> 61634 | H46: 38817 | I46: 282317 | J46: 17480 | K46: 55640 | L46: 38160 | M46: 159214 | N46: 17560 | O46: 55680 | P46: 38120 | Q46: -40
A47: 2022-01-02 | B47: 44 | C47: 20 | D47: 2022-01-02 | E47: 20 | F47: =IF(ISNA(VLOOKUP(E47,تعريفات!$A$2:$B$600,2,FALSE))," ",VLOOKUP(E47,تعريفات!$A$2:$B$600,2,FALSE)) -> عبدالله سالم | G47: =IF(E47="","",IFERROR(_xlfn.SINGLE(Singlecellextract(F47,تعريفات!$B$2:$C$1000,2)),"")) -> 61640 | H47: 38818 | I47: 282328 | J47: 17640 | K47: 56040 | L47: 38400 | M47: 159222 | N47: 17780 | O47: 56060 | P47: 38280 | Q47: -120
A48: 2022-01-02 | B48: 45 | C48: 21 | D48: 2022-01-02 | E48: 7 | F48: =IF(ISNA(VLOOKUP(E48,تعريفات!$A$2:$B$600,2,FALSE))," ",VLOOKUP(E48,تعريفات!$A$2:$B$600,2,FALSE)) -> علي عبدالله | G48: =IF(E48="","",IFERROR(_xlfn.SINGLE(Singlecellextract(F48,تعريفات!$B$2:$C$1000,2)),"")) -> 61457 | H48: 38819 | I48: 282331 | J48: 17580 | K48: 55680 | L48: 38100 | M48: 159227 | N48: 17640 | O48: 55680 | P48: 38040 | Q48: -60
A49: 2022-01-02 | B49: 46 | C49: 22 | D49: 2022-01-02 | E49: 6 | F49: =IF(ISNA(VLOOKUP(E49,تعريفات!$A$2:$B$600,2,FALSE))," ",VLOOKUP(E49,تعريفات!$A$2:$B$600,2,FALSE)) -> منيف عايد | G49: =IF(E49="","",IFERROR(_xlfn.SINGLE(Singlecellextract(F49,تعريفات!$B$2:$C$1000,2)),"")) -> 61463, 61604, 61457, 61460, 59481, 61601 | H49: 38820 | I49: 282332 | J49: 17320 | K49: 55520 | L49: 38200 | M49: 159229 | N49: 17260 | O49: 55440 | P49: 38180 | Q49: -20
A50: 2022-01-02 | B50: 47 | C50: 23 | D50: 2022-01-02 | E50: 23 | F50: =IF(ISNA(VLOOKUP(E50,تعريفات!$A$2:$B$600,2,FALSE))," ",VLOOKUP(E50,تعريفات!$A$2:$B$600,2,FALSE)) -> محمد عريبان | G50: =IF(E50="","",IFERROR(_xlfn.SINGLE(Singlecellextract(F50,تعريفات!$B$2:$C$1000,2)),"")) -> 61595 | H50: 38821 | I50: 282335 | J50: 17300 | K50: 55780 | L50: 38480 | M50: 159234 | N50: 17420 | O50: 55820 | P50: 38400 | Q50: -80
A51: 2022-01-02 | B51: 48 | C51: 24 | D51: 2022-01-02 | E51: 4 | F51: =IF(ISNA(VLOOKUP(E51,تعريفات!$A$2:$B$600,2,FALSE))," ",VLOOKUP(E51,تعريفات!$A$2:$B$600,2,FALSE)) -> منصور عيد | G51: =IF(E51="","",IFERROR(_xlfn.SINGLE(Singlecellextract(F51,تعريفات!$B$2:$C$1000,2)),"")) -> 61613 | H51: 38822 | I51: 282333 | J51: 17680 | K51: 55680 | L51: 38000 | M51: 159235 | N51: 17740 | O51: 55680 | P51: 37940 | Q51: -60
A52: 2022-01-02 | B52: 49 | C52: 25 | D52: 2022-01-02 | E52: 3 | F52: =IF(ISNA(VLOOKUP(E52,تعريفات!$A$2:$B$600,2,FALSE))," ",VLOOKUP(E52,تعريفات!$A$2:$B$600,2,FALSE)) -> جهاد شاهين | G52: =IF(E52="","",IFERROR(_xlfn.SINGLE(Singlecellextract(F52,تعريفات!$B$2:$C$1000,2)),"")) -> 59490 | H52: 38823 | I52: 282339 | J52: 17720 | K52: 55820 | L52: 38100 | M52: 159239 | N52: 17800 | O52: 55840 | P52: 38040 | Q52: -60
A53: 2022-01-03 | B53: 50 | C53: 1 | D53: 2022-01-03 | E53: 24 | F53: =IF(ISNA(VLOOKUP(E53,تعريفات!$A$2:$B$600,2,FALSE))," ",VLOOKUP(E53,تعريفات!$A$2:$B$600,2,FALSE)) -> هايل الركيبات | G53: =IF(E53="","",IFERROR(_xlfn.SINGLE(Singlecellextract(F53,تعريفات!$B$2:$C$1000,2)),"")) -> 61610 | H53: 38824 | I53: 282344 | J53: 17580 | K53: 55700 | L53: 38120 | M53: 159249 | N53: 17460 | O53: 55640 | P53: 38180 | Q53: 60
A54: 2022-01-03 | B54: 51 | C54: 2 | D54: 2022-01-03 | E54: 10 | F54: =IF(ISNA(VLOOKUP(E54,تعريفات!$A$2:$B$600,2,FALSE))," ",VLOOKUP(E54,تعريفات!$A$2:$B$600,2,FALSE)) -> فؤاد عيسى | G54: =IF(E54="","",IFERROR(_xlfn.SINGLE(Singlecellextract(F54,تعريفات!$B$2:$C$1000,2)),"")) -> 61586 | H54: 38825 | I54: 282347 | J54: 17420 | K54: 55660 | L54: 38240 | M54: 159248 | N54: 17440 | O54: 55780 | P54: 38340 | Q54: 100
A55: 2022-01-03 | B55: 52 | C55: 3 | D55: 2022-01-03 | E55: 27 | F55: =IF(ISNA(VLOOKUP(E55,تعريفات!$A$2:$B$600,2,FALSE))," ",VLOOKUP(E55,تعريفات!$A$2:$B$600,2,FALSE)) -> محمد سلامة | G55: =IF(E55="","",IFERROR(_xlfn.SINGLE(Singlecellextract(F55,تعريفات!$B$2:$C$1000,2)),"")) -> 59487, 61454, 39532, 61457, 59481, 61610 | H55: 38826 | I55: 282350 | J55: 17660 | K55: 55900 | L55: 38240 | M55: 159252 | N55: 17680 | O55: 55980 | P55: 38300 | Q55: 60
A56: 2022-01-03 | B56: 53 | C56: 4 | D56: 2022-01-03 | E56: 25 | F56: =IF(ISNA(VLOOKUP(E56,تعريفات!$A$2:$B$600,2,FALSE))," ",VLOOKUP(E56,تعريفات!$A$2:$B$600,2,FALSE)) -> صلاح الركيبات | G56: =IF(E56="","",IFERROR(_xlfn.SINGLE(Singlecellextract(F56,تعريفات!$B$2:$C$1000,2)),"")) -> 61619, 61637, 61622, 48407 | H56: 38827 | I56: 282353 | J56: 17740 | K56: 55820 | L56: 38080 | M56: 159253 | N56: 17600 | O56: 55720 | P56: 38120 | Q56: 40
A57: 2022-01-03 | B57: 54 | C57: 5 | D57: 2022-01-03 | E57: 17 | F57: =IF(ISNA(VLOOKUP(E57,تعريفات!$A$2:$B$600,2,FALSE))," ",VLOOKUP(E57,تعريفات!$A$2:$B$600,2,FALSE)) -> هاني محمد | G57: =IF(E57="","",IFERROR(_xlfn.SINGLE(Singlecellextract(F57,تعريفات!$B$2:$C$1000,2)),"")) -> 59478, 61631 | H57: 38828 | I57: 282356 | J57: 17540 | K57: 551000 | L57: 533460 | M57: 159254 | N57: 17540 | O57: 55540 | P57: 38000 | Q57: -495460
A58: 2022-01-03 | B58: 55 | C58: 6 | D58: 2022-01-03 | E58: 12 | F58: =IF(ISNA(VLOOKUP(E58,تعريفات!$A$2:$B$600,2,FALSE))," ",VLOOKUP(E58,تعريفات!$A$2:$B$600,2,FALSE)) -> سعيد سلمان | G58: =IF(E58="","",IFERROR(_xlfn.SINGLE(Singlecellextract(F58,تعريفات!$B$2:$C$1000,2)),"")) -> 59481 | H58: 38829 | I58: 282359 | J58: 17360 | K58: 55700 | L58: 38340 | M58: 159257 | N58: 17160 | O58: 55560 | P58: 38400 | Q58: 60
A59: 2022-01-03 | B59: 56 | C59: 7 | D59: 2022-01-03 | E59: 22 | F59: =IF(ISNA(VLOOKUP(E59,تعريفات!$A$2:$B$600,2,FALSE))," ",VLOOKUP(E59,تعريفات!$A$2:$B$600,2,FALSE)) -> علي حمد | G59: =IF(E59="","",IFERROR(_xlfn.SINGLE(Singlecellextract(F59,تعريفات!$B$2:$C$1000,2)),"")) -> 61637 | H59: 38830 | I59: 282358 | J59: 17480 | K59: 55700 | L59: 38220 | M59: 159259 | N59: 17360 | O59: 55640 | P59: 38280 | Q59: 60
A60: 2022-01-03 | B60: 57 | C60: 8 | D60: 2022-01-03 | E60: 21 | F60: =IF(ISNA(VLOOKUP(E60,تعريفات!$A$2:$B$600,2,FALSE))," ",VLOOKUP(E60,تعريفات!$A$2:$B$600,2,FALSE)) -> حسن يوسف | G60: =IF(E60="","",IFERROR(_xlfn.SINGLE(Singlecellextract(F60,تعريفات!$B$2:$C$1000,2)),"")) -> 6567, 61460, 59481, 61604, 34617, 61631, 61622 | H60: 38831 | I60: 282362 | J60: 18440 | K60: 55800 | L60: 37360 | M60: 159296 | N60: 18160 | O60: 55580 | P60: 37420 | Q60: 60
A61: 2022-01-03 | B61: 58 | C61: 9 | D61: 2022-01-03 | E61: 11 | F61: =IF(ISNA(VLOOKUP(E61,تعريفات!$A$2:$B$600,2,FALSE))," ",VLOOKUP(E61,تعريفات!$A$2:$B$600,2,FALSE)) -> عيد هليل | G61: =IF(E61="","",IFERROR(_xlfn.SINGLE(Singlecellextract(F61,تعريفات!$B$2:$C$1000,2)),"")) -> 61634 | H61: 38832 | I61: 282360 | J61: 171000 | K61: 55820 | L61: -115180 | M61: 159260 | N61: 17480 | O61: 55860 | P61: 38380 | Q61: 153560
A62: 2022-01-03 | B62: 59 | C62: 10 | D62: 2022-01-03 | E62: 20 | F62: =IF(ISNA(VLOOKUP(E62,تعريفات!$A$2:$B$600,2,FALSE))," ",VLOOKUP(E62,تعريفات!$A$2:$B$600,2,FALSE)) -> عبدالله سالم | G62: =IF(E62="","",IFERROR(_xlfn.SINGLE(Singlecellextract(F62,تعريفات!$B$2:$C$1000,2)),"")) -> 61640 | H62: 38833 | I62: 282363 | J62: 17700 | K62: 55780 | L62: 38080 | M62: 159256 | N62: 17700 | O62: 55860 | P62: 38160 | Q62: 80
A63: 2022-01-03 | B63: 60 | C63: 11 | D63: 2022-01-03 | E63: 9 | F63: =IF(ISNA(VLOOKUP(E63,تعريفات!$A$2:$B$600,2,FALSE))," ",VLOOKUP(E63,تعريفات!$A$2:$B$600,2,FALSE)) -> سليمان خضير | G63: =IF(E63="","",IFERROR(_xlfn.SINGLE(Singlecellextract(F63,تعريفات!$B$2:$C$1000,2)),"")) -> 61580, 61631 | H63: 38834 | I63: 282366 | J63: 17720 | K63: 55700 | L63: 37980 | M63: 159267 | N63: 17780 | O63: 55840 | P63: 38060 | Q63: 80
A64: 2022-01-03 | B64: 61 | C64: 12 | D64: 2022-01-03 | E64: 28 | F64: =IF(ISNA(VLOOKUP(E64,تعريفات!$A$2:$B$600,2,FALSE))," ",VLOOKUP(E64,تعريفات!$A$2:$B$600,2,FALSE)) -> رفيق البدور | G64: =IF(E64="","",IFERROR(_xlfn.SINGLE(Singlecellextract(F64,تعريفات!$B$2:$C$1000,2)),"")) -> 61631, 61604 | H64: 38835 | I64: 282365 | J64: 17260 | K64: 55560 | L64: 38300 | M64: 159258 | N64: 17120 | O64: 551000 | P64: 533880 | Q64: 495580
A65: 2022-01-03 | B65: 62 | C65: 13 | D65: 2022-01-03 | E65: 29 | F65: =IF(ISNA(VLOOKUP(E65,تعريفات!$A$2:$B$600,2,FALSE))," ",VLOOKUP(E65,تعريفات!$A$2:$B$600,2,FALSE)) -> محمد المغربي | G65: =IF(E65="","",IFERROR(_xlfn.SINGLE(Singlecellextract(F65,تعريفات!$B$2:$C$1000,2)),"")) -> 61451 | H65: 38836 | I65: 282371 | J65: 17780 | K65: 55800 | L65: 38020 | M65: 159265 | N65: 17660 | O65: 55660 | P65: 38000 | Q65: -20
A66: 2022-01-03 | B66: 63 | C66: 14 | D66: 2022-01-03 | E66: 2 | F66: =IF(ISNA(VLOOKUP(E66,تعريفات!$A$2:$B$600,2,FALSE))," ",VLOOKUP(E66,تعريفات!$A$2:$B$600,2,FALSE)) -> محمد الرواجيح | G66: =IF(E66="","",IFERROR(_xlfn.SINGLE(Singlecellextract(F66,تعريفات!$B$2:$C$1000,2)),"")) -> 61592, 61622 | H66: 38837 | I66: 282377 | J66: 17300 | K66: 55680 | L66: 38380 | M66: 159276 | N66: 17160 | O66: 55560 | P66: 38400 | Q66: 20
A67: 2022-01-03 | B67: 64 | C67: 15 | D67: 2022-01-03 | E67: 1 | F67: =IF(ISNA(VLOOKUP(E67,تعريفات!$A$2:$B$600,2,FALSE))," ",VLOOKUP(E67,تعريفات!$A$2:$B$600,2,FALSE)) -> محي الدين | G67: =IF(E67="","",IFERROR(_xlfn.SINGLE(Singlecellextract(F67,تعريفات!$B$2:$C$1000,2)),"")) -> 61598 | H67: 38838 | I67: 282384 | J67: 17700 | K67: 55760 | L67: 38060 | M67: 159292 | N67: 17840 | O67: 55960 | P67: 38120 | Q67: 60
A68: 2022-01-03 | B68: 65 | C68: 16 | D68: 2022-01-03 | E68: 5 | F68: =IF(ISNA(VLOOKUP(E68,تعريفات!$A$2:$B$600,2,FALSE))," ",VLOOKUP(E68,تعريفات!$A$2:$B$600,2,FALSE)) -> محمود عايد | G68: =IF(E68="","",IFERROR(_xlfn.SINGLE(Singlecellextract(F68,تعريفات!$B$2:$C$1000,2)),"")) -> 61460, 61631, 59481, 6567 | H68: 38839 | I68: 282388 | J68: 17540 | K68: 55720 | L68: 38180 | M68: 159279 | N68: 17420 | O68: 55620 | P68: 38200 | Q68: =P68-L68 -> 20
A69: =D69 -> 2022-01-03 | B69: 66 | C69: 17 | D69: 2022-01-03 | E69: 13 | F69: =IF(ISNA(VLOOKUP(E69,تعريفات!$A$2:$B$600,2,FALSE))," ",VLOOKUP(E69,تعريفات!$A$2:$B$600,2,FALSE)) -> فندي محمد | G69: =IF(E69="","",IFERROR(_xlfn.SINGLE(Singlecellextract(F69,تعريفات!$B$2:$C$1000,2)),"")) -> 61601, 6567, 59484 | H69: 38840 | I69: 282387 | J69: 17160 | K69: 55580 | L69: =K69-J69 -> 38420 | M69: 159288 | N69: 17060 | O69: 55620 | P69: 38560 | Q69: 140
A70: 2022-01-03 | B70: =B69+1 -> 67 | C70: 18 | D70: 2022-01-03 | E70: 15 | F70: =IF(ISNA(VLOOKUP(E70,تعريفات!$A$2:$B$600,2,FALSE))," ",VLOOKUP(E70,تعريفات!$A$2:$B$600,2,FALSE)) -> طارق خليف | G70: =IF(E70="","",IFERROR(_xlfn.SINGLE(Singlecellextract(F70,تعريفات!$B$2:$C$1000,2)),"")) -> 61628, 59481, 61460, 61625, 61640, 35577 | H70: 38841 | I70: 282389 | J70: 17280 | K70: 551000 | L70: 533720 | M70: 159284 | N70: 17140 | O70: 55460 | P70: =O70-N70 -> 38320 | Q70: -495400
A71: 2022-01-03 | B71: 68 | C71: 19 | D71: 2022-01-03 | E71: 6 | F71: =IF(ISNA(VLOOKUP(E71,تعريفات!$A$2:$B$600,2,FALSE))," ",VLOOKUP(E71,تعريفات!$A$2:$B$600,2,FALSE)) -> منيف عايد | G71: =IF(E71="","",IFERROR(_xlfn.SINGLE(Singlecellextract(F71,تعريفات!$B$2:$C$1000,2)),"")) -> 61463, 61604, 61457, 61460, 59481, 61601 | H71: 38842 | I71: 282401 | J71: 17220 | K71: 55340 | L71: 38120 | M71: 159297 | N71: 17260 | O71: 55460 | P71: 38200 | Q71: 80
A72: 2022-01-03 | B72: 69 | C72: 20 | D72: 2022-01-03 | E72: 19 | F72: =IF(ISNA(VLOOKUP(E72,تعريفات!$A$2:$B$600,2,FALSE))," ",VLOOKUP(E72,تعريفات!$A$2:$B$600,2,FALSE)) -> بسام عودة | G72: =IF(E72="","",IFERROR(_xlfn.SINGLE(Singlecellextract(F72,تعريفات!$B$2:$C$1000,2)),"")) -> 61625 | H72: 38843 | I72: 282403 | J72: 17360 | K72: 55700 | L72: 38340 | M72: 159310 | N72: 17440 | O72: 55820 | P72: 38380 | Q72: 40
A73: 2022-01-03 | B73: 70 | C73: 21 | D73: 2022-01-03 | E73: 32 | F73: =IF(ISNA(VLOOKUP(E73,تعريفات!$A$2:$B$600,2,FALSE))," ",VLOOKUP(E73,تعريفات!$A$2:$B$600,2,FALSE)) -> محمد علي | G73: =IF(E73="","",IFERROR(_xlfn.SINGLE(Singlecellextract(F73,تعريفات!$B$2:$C$1000,2)),"")) -> 35577, 39532, 61586, 61604, 48610, 34617, 48581, 61631 | H73: 38844 | I73: 282400 | J73: 19260 | K73: 55580 | L73: 36320 | M73: 159299 | N73: 19160 | O73: 55580 | P73: 36420 | Q73: 100
A74: 2022-01-03 | B74: 71 | C74: 22 | D74: 2022-01-03 | E74: 23 | F74: =IF(ISNA(VLOOKUP(E74,تعريفات!$A$2:$B$600,2,FALSE))," ",VLOOKUP(E74,تعريفات!$A$2:$B$600,2,FALSE)) -> محمد عريبان | G74: =IF(E74="","",IFERROR(_xlfn.SINGLE(Singlecellextract(F74,تعريفات!$B$2:$C$1000,2)),"")) -> 61595 | H74: 38845 | I74: 282406 | J74: 17380 | K74: 55620 | L74: 38240 | M74: 159305 | N74: 17340 | O74: 55660 | P74: 38320 | Q74: 80
A75: 2022-01-03 | B75: 72 | C75: 23 | D75: 2022-01-03 | E75: 7 | F75: =IF(ISNA(VLOOKUP(E75,تعريفات!$A$2:$B$600,2,FALSE))," ",VLOOKUP(E75,تعريفات!$A$2:$B$600,2,FALSE)) -> علي عبدالله | G75: =IF(E75="","",IFERROR(_xlfn.SINGLE(Singlecellextract(F75,تعريفات!$B$2:$C$1000,2)),"")) -> 61457 | H75: 38846 | I75: 282408 | J75: 17620 | K75: 55720 | L75: 38100 | M75: 159306 | N75: 17600 | O75: 55820 | P75: 38220 | Q75: 120
A76: 2022-01-03 | B76: 73 | C76: 24 | D76: 2022-01-03 | E76: 3 | F76: =IF(ISNA(VLOOKUP(E76,تعريفات!$A$2:$B$600,2,FALSE))," ",VLOOKUP(E76,تعريفات!$A$2:$B$600,2,FALSE)) -> جهاد شاهين | G76: =IF(E76="","",IFERROR(_xlfn.SINGLE(Singlecellextract(F76,تعريفات!$B$2:$C$1000,2)),"")) -> 59490 | H76: 38847 | I76: 282412 | J76: 17720 | K76: 55980 | L76: 38260 | M76: 159314 | N76: 17720 | O76: 56100 | P76: 38380 | Q76: 120
A77: 2022-01-04 | B77: 74 | C77: 1 | D77: 2022-01-04 | E77: 24 | F77: =IF(ISNA(VLOOKUP(E77,تعريفات!$A$2:$B$600,2,FALSE))," ",VLOOKUP(E77,تعريفات!$A$2:$B$600,2,FALSE)) -> هايل الركيبات | G77: =IF(E77="","",IFERROR(_xlfn.SINGLE(Singlecellextract(F77,تعريفات!$B$2:$C$1000,2)),"")) -> 61610 | H77: 38848 | I77: 282420 | J77: 17560 | K77: 551000 | L77: 533440 | M77: 159319 | N77: 17440 | O77: 55560 | P77: 38120 | Q77: -495320
A78: 2022-01-04 | B78: 75 | C78: 2 | D78: 2022-01-04 | E78: 8 | F78: =IF(ISNA(VLOOKUP(E78,تعريفات!$A$2:$B$600,2,FALSE))," ",VLOOKUP(E78,تعريفات!$A$2:$B$600,2,FALSE)) -> فايز علي | G78: =IF(E78="","",IFERROR(_xlfn.SINGLE(Singlecellextract(F78,تعريفات!$B$2:$C$1000,2)),"")) -> 59484 | H78: 38849 | I78: 282423 | J78: 17680 | K78: 55240 | L78: 37560 | M78: 159332 | N78: 17600 | O78: 55320 | P78: 37720 | Q78: 160
A79: 2022-01-04 | B79: 76 | C79: 3 | D79: 2022-01-04 | E79: 1 | F79: =IF(ISNA(VLOOKUP(E79,تعريفات!$A$2:$B$600,2,FALSE))," ",VLOOKUP(E79,تعريفات!$A$2:$B$600,2,FALSE)) -> محي الدين | G79: =IF(E79="","",IFERROR(_xlfn.SINGLE(Singlecellextract(F79,تعريفات!$B$2:$C$1000,2)),"")) -> 61598 | H79: 38850 | I79: 282426 | J79: 17800 | K79: 55480 | L79: 37680 | M79: 159321 | N79: 17860 | O79: 55680 | P79: 37820 | Q79: 140
A80: 2022-01-04 | B80: 77 | C80: 4 | D80: 2022-01-04 | E80: 14 | F80: =IF(ISNA(VLOOKUP(E80,تعريفات!$A$2:$B$600,2,FALSE))," ",VLOOKUP(E80,تعريفات!$A$2:$B$600,2,FALSE)) -> سليمان عطالله | G80: =IF(E80="","",IFERROR(_xlfn.SINGLE(Singlecellextract(F80,تعريفات!$B$2:$C$1000,2)),"")) -> 61454, 61586 | H80: 38851 | I80: 282429 | J80: 17620 | K80: 55580 | L80: 37960 | M80: 159325 | N80: 17480 | O80: 55540 | P80: 38060 | Q80: 100
A81: 2022-01-04 | B81: 78 | C81: 5 | D81: 2022-01-04 | E81: 27 | F81: =IF(ISNA(VLOOKUP(E81,تعريفات!$A$2:$B$600,2,FALSE))," ",VLOOKUP(E81,تعريفات!$A$2:$B$600,2,FALSE)) -> محمد سلامة | G81: =IF(E81="","",IFERROR(_xlfn.SINGLE(Singlecellextract(F81,تعريفات!$B$2:$C$1000,2)),"")) -> 59487, 61454, 39532, 61457, 59481, 61610 | H81: 38852 | I81: 282431 | J81: 17800 | K81: 55720 | L81: 37920 | M81: 159328 | N81: 17780 | O81: 55880 | P81: 38100 | Q81: 180
A82: 2022-01-04 | B82: 79 | C82: 6 | D82: 2022-01-04 | E82: 17 | F82: =IF(ISNA(VLOOKUP(E82,تعريفات!$A$2:$B$600,2,FALSE))," ",VLOOKUP(E82,تعريفات!$A$2:$B$600,2,FALSE)) -> هاني محمد | G82: =IF(E82="","",IFERROR(_xlfn.SINGLE(Singlecellextract(F82,تعريفات!$B$2:$C$1000,2)),"")) -> 59478, 61631 | H82: 38853 | I82: 282433 | J82: 17680 | K82: 55600 | L82: 37920 | M82: 159327 | N82: 17620 | O82: 55640 | P82: 38020 | Q82: 100
A83: 2022-01-04 | B83: 80 | C83: 7 | D83: 2022-01-04 | E83: 12 | F83: =IF(ISNA(VLOOKUP(E83,تعريفات!$A$2:$B$600,2,FALSE))," ",VLOOKUP(E83,تعريفات!$A$2:$B$600,2,FALSE)) -> سعيد سلمان | G83: =IF(E83="","",IFERROR(_xlfn.SINGLE(Singlecellextract(F83,تعريفات!$B$2:$C$1000,2)),"")) -> 59481 | H83: 38854 | I83: 282435 | J83: 17320 | K83: 55600 | L83: 38280 | M83: 159333 | N83: 17240 | O83: 55620 | P83: 38380 | Q83: 100
A84: 2022-01-04 | B84: 81 | C84: 8 | D84: 2022-01-04 | E84: 22 | F84: =IF(ISNA(VLOOKUP(E84,تعريفات!$A$2:$B$600,2,FALSE))," ",VLOOKUP(E84,تعريفات!$A$2:$B$600,2,FALSE)) -> علي حمد | G84: =IF(E84="","",IFERROR(_xlfn.SINGLE(Singlecellextract(F84,تعريفات!$B$2:$C$1000,2)),"")) -> 61637 | H84: 38855 | I84: 282436 | J84: 17480 | K84: 55600 | L84: 38120 | M84: 159334 | N84: 17420 | O84: 55600 | P84: 38180 | Q84: 60
A85: 2022-01-04 | B85: 82 | C85: 9 | D85: 2022-01-04 | E85: 11 | F85: =IF(ISNA(VLOOKUP(E85,تعريفات!$A$2:$B$600,2,FALSE))," ",VLOOKUP(E85,تعريفات!$A$2:$B$600,2,FALSE)) -> عيد هليل | G85: =IF(E85="","",IFERROR(_xlfn.SINGLE(Singlecellextract(F85,تعريفات!$B$2:$C$1000,2)),"")) -> 61634 | H85: 38856 | I85: 282437 | J85: 17640 | K85: 55560 | L85: 37920 | M85: 159336 | N85: 17560 | O85: 55600 | P85: 38040 | Q85: 120
A86: 2022-01-04 | B86: 83 | C86: 10 | D86: 2022-01-04 | E86: 20 | F86: =IF(ISNA(VLOOKUP(E86,تعريفات!$A$2:$B$600,2,FALSE))," ",VLOOKUP(E86,تعريفات!$A$2:$B$600,2,FALSE)) -> عبدالله سالم | G86: =IF(E86="","",IFERROR(_xlfn.SINGLE(Singlecellextract(F86,تعريفات!$B$2:$C$1000,2)),"")) -> 61640 | H86: 38857 | I86: 282439 | J86: 17640 | K86: 55660 | L86: 38020 | M86: 159335 | N86: 17760 | O86: 55840 | P86: 38080 | Q86: 60
A87: 2022-01-04 | B87: 84 | C87: 11 | D87: 2022-01-04 | E87: 15 | F87: =IF(ISNA(VLOOKUP(E87,تعريفات!$A$2:$B$600,2,FALSE))," ",VLOOKUP(E87,تعريفات!$A$2:$B$600,2,FALSE)) -> طارق خليف | G87: =IF(E87="","",IFERROR(_xlfn.SINGLE(Singlecellextract(F87,تعريفات!$B$2:$C$1000,2)),"")) -> 61628, 59481, 61460, 61625, 61640, 35577 | H87: 38858 | I87: 282438 | J87: 17280 | K87: 55520 | L87: 38240 | M87: 159342 | N87: 17160 | O87: 55440 | P87: 38280 | Q87: 40
A88: 2022-01-04 | B88: 85 | C88: 12 | D88: 2022-01-04 | E88: 9 | F88: =IF(ISNA(VLOOKUP(E88,تعريفات!$A$2:$B$600,2,FALSE))," ",VLOOKUP(E88,تعريفات!$A$2:$B$600,2,FALSE)) -> سليمان خضير | G88: =IF(E88="","",IFERROR(_xlfn.SINGLE(Singlecellextract(F88,تعريفات!$B$2:$C$1000,2)),"")) -> 61580, 61631 | H88: 38859 | I88: 282442 | J88: 17860 | K88: 55780 | L88: 37920 | M88: 159338 | N88: 17780 | O88: 55760 | P88: 37980 | Q88: 60
A89: 2022-01-04 | B89: 86 | C89: 13 | D89: 2022-01-04 | E89: 19 | F89: =IF(ISNA(VLOOKUP(E89,تعريفات!$A$2:$B$600,2,FALSE))," ",VLOOKUP(E89,تعريفات!$A$2:$B$600,2,FALSE)) -> بسام عودة | G89: =IF(E89="","",IFERROR(_xlfn.SINGLE(Singlecellextract(F89,تعريفات!$B$2:$C$1000,2)),"")) -> 61625 | H89: 38860 | I89: 282443 | J89: 17300 | K89: 55680 | L89: 38380 | M89: 159346 | N89: 17300 | O89: 55860 | P89: 38560 | Q89: 180
A90: 2022-01-04 | B90: 87 | C90: 14 | D90: 2022-01-04 | E90: 29 | F90: =IF(ISNA(VLOOKUP(E90,تعريفات!$A$2:$B$600,2,FALSE))," ",VLOOKUP(E90,تعريفات!$A$2:$B$600,2,FALSE)) -> محمد المغربي | G90: =IF(E90="","",IFERROR(_xlfn.SINGLE(Singlecellextract(F90,تعريفات!$B$2:$C$1000,2)),"")) -> 61451 | H90: 38861 | I90: 282455 | J90: 17860 | K90: 55920 | L90: 38060 | M90: 159343 | N90: 17720 | O90: 56040 | P90: 38320 | Q90: 260
A91: 2022-01-04 | B91: 88 | C91: 15 | D91: 2022-01-04 | E91: 30 | F91: =IF(ISNA(VLOOKUP(E91,تعريفات!$A$2:$B$600,2,FALSE))," ",VLOOKUP(E91,تعريفات!$A$2:$B$600,2,FALSE)) -> فؤاد الرفايعة | G91: =IF(E91="","",IFERROR(_xlfn.SINGLE(Singlecellextract(F91,تعريفات!$B$2:$C$1000,2)),"")) -> 61604, 39532, 61592, 61625, 61607 | H91: 38862 | I91: 282457 | J91: 17360 | K91: 55300 | L91: 37940 | M91: 159347 | N91: 17200 | O91: 55340 | P91: 38140 | Q91: 200
A92: 2022-01-04 | B92: 89 | C92: 16 | D92: 2022-01-04 | E92: 26 | F92: =IF(ISNA(VLOOKUP(E92,تعريفات!$A$2:$B$600,2,FALSE))," ",VLOOKUP(E92,تعريفات!$A$2:$B$600,2,FALSE)) -> محمود الرفايعة | G92: =IF(E92="","",IFERROR(_xlfn.SINGLE(Singlecellextract(F92,تعريفات!$B$2:$C$1000,2)),"")) -> 61607 | H92: 38863 | I92: 282458 | J92: 17600 | K92: 55280 | L92: 37680 | M92: 159348 | N92: 17460 | O92: 55320 | P92: 37860 | Q92: 180
A93: 2022-01-04 | B93: 90 | C93: 17 | D93: 2022-01-04 | E93: 2 | F93: =IF(ISNA(VLOOKUP(E93,تعريفات!$A$2:$B$600,2,FALSE))," ",VLOOKUP(E93,تعريفات!$A$2:$B$600,2,FALSE)) -> محمد الرواجيح | G93: =IF(E93="","",IFERROR(_xlfn.SINGLE(Singlecellextract(F93,تعريفات!$B$2:$C$1000,2)),"")) -> 61592, 61622 | H93: 38864 | I93: 282466 | J93: 17240 | K93: 55340 | L93: 38100 | M93: 159358 | N93: 17200 | O93: 55160 | P93: 37960 | Q93: -140
A94: 2022-01-04 | B94: 91 | C94: 18 | D94: 2022-01-04 | E94: 25 | F94: =IF(ISNA(VLOOKUP(E94,تعريفات!$A$2:$B$600,2,FALSE))," ",VLOOKUP(E94,تعريفات!$A$2:$B$600,2,FALSE)) -> صلاح الركيبات | G94: =IF(E94="","",IFERROR(_xlfn.SINGLE(Singlecellextract(F94,تعريفات!$B$2:$C$1000,2)),"")) -> 61619, 61637, 61622, 48407 | H94: 38865 | I94: 282468 | J94: 17660 | K94: 55600 | L94: 37940 | M94: 159364 | N94: 17560 | O94: 55360 | P94: 37800 | Q94: -140
A95: 2022-01-04 | B95: 92 | C95: 19 | D95: 2022-01-04 | E95: 13 | F95: =IF(ISNA(VLOOKUP(E95,تعريفات!$A$2:$B$600,2,FALSE))," ",VLOOKUP(E95,تعريفات!$A$2:$B$600,2,FALSE)) -> فندي محمد | G95: =IF(E95="","",IFERROR(_xlfn.SINGLE(Singlecellextract(F95,تعريفات!$B$2:$C$1000,2)),"")) -> 61601, 6567, 59484 | H95: 38866 | I95: 282470 | J95: 17220 | K95: 55740 | L95: 38520 | M95: 159366 | N95: 17080 | O95: 55560 | P95: 38480 | Q95: -40
A96: 2022-01-04 | B96: 93 | C96: 20 | D96: 2022-01-04 | E96: 16 | F96: =IF(ISNA(VLOOKUP(E96,تعريفات!$A$2:$B$600,2,FALSE))," ",VLOOKUP(E96,تعريفات!$A$2:$B$600,2,FALSE)) -> حسين اللوافية | G96: =IF(E96="","",IFERROR(_xlfn.SINGLE(Singlecellextract(F96,تعريفات!$B$2:$C$1000,2)),"")) -> 61589, 61625, 59481, 6567, 48581, 48610, 61610, 61619 | H96: 38867 | I96: 282473 | J96: 17020 | K96: 55580 | L96: 38560 | M96: 159370 | N96: 17040 | O96: 55540 | P96: 38500 | Q96: -60
A97: 2022-01-04 | B97: 94 | C97: 21 | D97: 2022-01-04 | E97: 23 | F97: =IF(ISNA(VLOOKUP(E97,تعريفات!$A$2:$B$600,2,FALSE))," ",VLOOKUP(E97,تعريفات!$A$2:$B$600,2,FALSE)) -> محمد عريبان | G97: =IF(E97="","",IFERROR(_xlfn.SINGLE(Singlecellextract(F97,تعريفات!$B$2:$C$1000,2)),"")) -> 61595 | H97: 38868 | I97: 282481 | J97: 17320 | K97: 55780 | L97: 38460 | M97: 159376 | N97: 17380 | O97: 55720 | P97: 38340 | Q97: -120
A98: 2022-01-04 | B98: 95 | C98: 22 | D98: 2022-01-04 | E98: 7 | F98: =IF(ISNA(VLOOKUP(E98,تعريفات!$A$2:$B$600,2,FALSE))," ",VLOOKUP(E98,تعريفات!$A$2:$B$600,2,FALSE)) -> علي عبدالله | G98: =IF(E98="","",IFERROR(_xlfn.SINGLE(Singlecellextract(F98,تعريفات!$B$2:$C$1000,2)),"")) -> 61457 | H98: 38869 | I98: 282480 | J98: 17640 | K98: 55840 | L98: 38200 | M98: 159375 | N98: 17600 | O98: 55700 | P98: 38100 | Q98: -100
A99: 2022-01-04 | B99: 96 | C99: 23 | D99: 2022-01-04 | E99: 18 | F99: =IF(ISNA(VLOOKUP(E99,تعريفات!$A$2:$B$600,2,FALSE))," ",VLOOKUP(E99,تعريفات!$A$2:$B$600,2,FALSE)) -> خالد القيسي | G99: =IF(E99="","",IFERROR(_xlfn.SINGLE(Singlecellextract(F99,تعريفات!$B$2:$C$1000,2)),"")) -> 61622 | H99: 38870 | I99: 282482 | J99: 17520 | K99: 55720 | L99: 38200 | M99: 159383 | N99: 17540 | O99: 55640 | P99: 38100 | Q99: -100
A100: 2022-01-04 | B100: 97 | C100: 24 | D100: 2022-01-04 | E100: 32 | F100: =IF(ISNA(VLOOKUP(E100,تعريفات!$A$2:$B$600,2,FALSE))," ",VLOOKUP(E100,تعريفات!$A$2:$B$600,2,FALSE)) -> محمد علي | G100: =IF(E100="","",IFERROR(_xlfn.SINGLE(Singlecellextract(F100,تعريفات!$B$2:$C$1000,2)),"")) -> 35577, 39532, 61586, 61604, 48610, 34617, 48581, 61631 | H100: 38871 | I100: 282484 | J100: 19260 | K100: 55800 | L100: 36540 | M100: 159382 | N100: 19160 | O100: 55600 | P100: 36440 | Q100: -100
A101: 2022-01-04 | B101: 98 | C101: 25 | D101: 2022-01-04 | E101: 3 | F101: =IF(ISNA(VLOOKUP(E101,تعريفات!$A$2:$B$600,2,FALSE))," ",VLOOKUP(E101,تعريفات!$A$2:$B$600,2,FALSE)) -> جهاد شاهين | G101: =IF(E101="","",IFERROR(_xlfn.SINGLE(Singlecellextract(F101,تعريفات!$B$2:$C$1000,2)),"")) -> 59490 | H101: 38872 | I101: 282485 | J101: 17720 | K101: 57860 | L101: 40140 | M101: 159384 | N101: 17860 | O101: 57700 | P101: 39840 | Q101: -300 | R101: =Q101+150 -> -150
A102: 2022-01-05 | B102: 99 | C102: 1 | D102: 2022-01-05 | E102: 10 | F102: =IF(ISNA(VLOOKUP(E102,تعريفات!$A$2:$B$600,2,FALSE))," ",VLOOKUP(E102,تعريفات!$A$2:$B$600,2,FALSE)) -> فؤاد عيسى | G102: =IF(E102="","",IFERROR(_xlfn.SINGLE(Singlecellextract(F102,تعريفات!$B$2:$C$1000,2)),"")) -> 61586 | H102: 38873 | I102: 282491 | J102: 17460 | K102: 55540 | L102: 38080 | M102: 159389 | N102: 17460 | O102: 55580 | P102: 38120 | Q102: 40
A103: 2022-01-05 | B103: 100 | C103: 2 | D103: 2022-01-05 | E103: 27 | F103: =IF(ISNA(VLOOKUP(E103,تعريفات!$A$2:$B$600,2,FALSE))," ",VLOOKUP(E103,تعريفات!$A$2:$B$600,2,FALSE)) -> محمد سلامة | G103: =IF(E103="","",IFERROR(_xlfn.SINGLE(Singlecellextract(F103,تعريفات!$B$2:$C$1000,2)),"")) -> 59487, 61454, 39532, 61457, 59481, 61610 | H103: 38874 | I103: 282494 | J103: 17760 | K103: 55960 | L103: 38200 | M103: 159392 | N103: 17660 | O103: 56040 | P103: 38380 | Q103: 180
A104: 2022-01-05 | B104: 101 | C104: 3 | D104: 2022-01-05 | E104: 22 | F104: =IF(ISNA(VLOOKUP(E104,تعريفات!$A$2:$B$600,2,FALSE))," ",VLOOKUP(E104,تعريفات!$A$2:$B$600,2,FALSE)) -> علي حمد | G104: =IF(E104="","",IFERROR(_xlfn.SINGLE(Singlecellextract(F104,تعريفات!$B$2:$C$1000,2)),"")) -> 61637 | H104: 38875 | I104: 282497 | J104: 17580 | K104: 55660 | L104: 38080 | M104: 159393 | N104: 17480 | O104: 55620 | P104: 38140 | Q104: 60
A105: 2022-01-05 | B105: 102 | C105: 4 | D105: 2022-01-05 | E105: 11 | F105: =IF(ISNA(VLOOKUP(E105,تعريفات!$A$2:$B$600,2,FALSE))," ",VLOOKUP(E105,تعريفات!$A$2:$B$600,2,FALSE)) -> عيد هليل | G105: =IF(E105="","",IFERROR(_xlfn.SINGLE(Singlecellextract(F105,تعريفات!$B$2:$C$1000,2)),"")) -> 61634 | H105: 38876 | I105: 2821000 | J105: 17460 | K105: 55760 | L105: 38300 | M105: 159396 | N105: 17520 | O105: 55800 | P105: 38280 | Q105: -20
A106: 2022-01-05 | B106: 103 | C106: 5 | D106: 2022-01-05 | E106: 30 | F106: =IF(ISNA(VLOOKUP(E106,تعريفات!$A$2:$B$600,2,FALSE))," ",VLOOKUP(E106,تعريفات!$A$2:$B$600,2,FALSE)) -> فؤاد الرفايعة | G106: =IF(E106="","",IFERROR(_xlfn.SINGLE(Singlecellextract(F106,تعريفات!$B$2:$C$1000,2)),"")) -> 61604, 39532, 61592, 61625, 61607 | H106: 38877 | I106: 282501 | J106: 17200 | K106: 55820 | L106: 38620 | M106: 159395 | N106: 17220 | O106: 55900 | P106: 38680 | Q106: 60
A107: 2022-01-05 | B107: 104 | C107: 6 | D107: 2022-01-05 | E107: 26 | F107: =IF(ISNA(VLOOKUP(E107,تعريفات!$A$2:$B$600,2,FALSE))," ",VLOOKUP(E107,تعريفات!$A$2:$B$600,2,FALSE)) -> محمود الرفايعة | G107: =IF(E107="","",IFERROR(_xlfn.SINGLE(Singlecellextract(F107,تعريفات!$B$2:$C$1000,2)),"")) -> 61607 | H107: 38878 | I107: 282502 | J107: 17400 | K107: 55460 | L107: 38060 | M107: 159394 | N107: 17460 | O107: 55720 | P107: 38260 | Q107: 200
A108: 2022-01-05 | B108: 105 | C108: 7 | D108: 2022-01-05 | E108: 19 | F108: =IF(ISNA(VLOOKUP(E108,تعريفات!$A$2:$B$600,2,FALSE))," ",VLOOKUP(E108,تعريفات!$A$2:$B$600,2,FALSE)) -> بسام عودة | G108: =IF(E108="","",IFERROR(_xlfn.SINGLE(Singlecellextract(F108,تعريفات!$B$2:$C$1000,2)),"")) -> 61625 | H108: 38879 | I108: 282505 | J108: 17280 | K108: 55680 | L108: 38400 | M108: 159400 | N108: 17360 | O108: 55880 | P108: 38520 | Q108: 120
A109: 2022-01-05 | B109: 106 | C109: 8 | D109: 2022-01-05 | E109: 9 | F109: =IF(ISNA(VLOOKUP(E109,تعريفات!$A$2:$B$600,2,FALSE))," ",VLOOKUP(E109,تعريفات!$A$2:$B$600,2,FALSE)) -> سليمان خضير | G109: =IF(E109="","",IFERROR(_xlfn.SINGLE(Singlecellextract(F109,تعريفات!$B$2:$C$1000,2)),"")) -> 61580, 61631 | H109: 38880 | I109: 282504 | J109: 17840 | K109: 55760 | L109: 37920 | M109: 159397 | N109: 17700 | O109: 55680 | P109: 37980 | Q109: 60
A110: 2022-01-05 | B110: 107 | C110: 9 | D110: 2022-01-05 | E110: 29 | F110: =IF(ISNA(VLOOKUP(E110,تعريفات!$A$2:$B$600,2,FALSE))," ",VLOOKUP(E110,تعريفات!$A$2:$B$600,2,FALSE)) -> محمد المغربي | G110: =IF(E110="","",IFERROR(_xlfn.SINGLE(Singlecellextract(F110,تعريفات!$B$2:$C$1000,2)),"")) -> 61451 | H110: 38881 | I110: 282503 | J110: 17860 | K110: 55980 | L110: 38120 | M110: 159398 | N110: 17740 | O110: 55840 | P110: 38100 | Q110: -20
A111: 2022-01-05 | B111: 108 | C111: 10 | D111: 2022-01-05 | E111: 18 | F111: =IF(ISNA(VLOOKUP(E111,تعريفات!$A$2:$B$600,2,FALSE))," ",VLOOKUP(E111,تعريفات!$A$2:$B$600,2,FALSE)) -> خالد القيسي | G111: =IF(E111="","",IFERROR(_xlfn.SINGLE(Singlecellextract(F111,تعريفات!$B$2:$C$1000,2)),"")) -> 61622 | H111: 38882 | I111: 282509 | J111: 17540 | K111: 55980 | L111: 38440 | M111: 159406 | N111: 17520 | O111: 55880 | P111: 38360 | Q111: -80
A112: 2022-01-05 | B112: 109 | C112: 11 | D112: 2022-01-05 | E112: 5 | F112: =IF(ISNA(VLOOKUP(E112,تعريفات!$A$2:$B$600,2,FALSE))," ",VLOOKUP(E112,تعريفات!$A$2:$B$600,2,FALSE)) -> محمود عايد | G112: =IF(E112="","",IFERROR(_xlfn.SINGLE(Singlecellextract(F112,تعريفات!$B$2:$C$1000,2)),"")) -> 61460, 61631, 59481, 6567 | H112: 38883 | I112: 282510 | J112: 171000 | K112: 55760 | L112: -115240 | M112: 159401 | N112: 17380 | O112: 55600 | P112: 38220 | Q112: 153460
A113: 2022-01-05 | B113: 110 | C113: 12 | D113: 2022-01-05 | E113: 12 | F113: =IF(ISNA(VLOOKUP(E113,تعريفات!$A$2:$B$600,2,FALSE))," ",VLOOKUP(E113,تعريفات!$A$2:$B$600,2,FALSE)) -> سعيد سلمان | G113: =IF(E113="","",IFERROR(_xlfn.SINGLE(Singlecellextract(F113,تعريفات!$B$2:$C$1000,2)),"")) -> 59481 | H113: 38884 | I113: 282518 | J113: 17320 | K113: 55540 | L113: 38220 | M113: 159403 | N113: 17200 | O113: 55360 | P113: 38160 | Q113: -60
A114: 2022-01-05 | B114: 111 | C114: 13 | D114: 2022-01-05 | E114: 32 | F114: =IF(ISNA(VLOOKUP(E114,تعريفات!$A$2:$B$600,2,FALSE))," ",VLOOKUP(E114,تعريفات!$A$2:$B$600,2,FALSE)) -> محمد علي | G114: =IF(E114="","",IFERROR(_xlfn.SINGLE(Singlecellextract(F114,تعريفات!$B$2:$C$1000,2)),"")) -> 35577, 39532, 61586, 61604, 48610, 34617, 48581, 61631 | H114: 38885 | I114: 282524 | J114: 19300 | K114: 55860 | L114: 36560 | M114: 159407 | N114: 19160 | O114: 55620 | P114: 36460 | Q114: -100
A115: 2022-01-05 | B115: 112 | C115: 14 | D115: 2022-01-05 | E115: 28 | F115: =IF(ISNA(VLOOKUP(E115,تعريفات!$A$2:$B$600,2,FALSE))," ",VLOOKUP(E115,تعريفات!$A$2:$B$600,2,FALSE)) -> رفيق البدور | G115: =IF(E115="","",IFERROR(_xlfn.SINGLE(Singlecellextract(F115,تعريفات!$B$2:$C$1000,2)),"")) -> 61631, 61604 | H115: 38886 | I115: 282525 | J115: 17060 | K115: 55940 | L115: 38880 | M115: 159416 | N115: 17140 | O115: 55940 | P115: 38800 | Q115: -80
A116: 2022-01-05 | B116: 113 | C116: 15 | D116: 2022-01-05 | E116: 16 | F116: =IF(ISNA(VLOOKUP(E116,تعريفات!$A$2:$B$600,2,FALSE))," ",VLOOKUP(E116,تعريفات!$A$2:$B$600,2,FALSE)) -> حسين اللوافية | G116: =IF(E116="","",IFERROR(_xlfn.SINGLE(Singlecellextract(F116,تعريفات!$B$2:$C$1000,2)),"")) -> 61589, 61625, 59481, 6567, 48581, 48610, 61610, 61619 | H116: 38887 | I116: 282526 | J116: 17020 | K116: 55620 | L116: 38600 | M116: 159418 | N116: 17060 | O116: 55580 | P116: 38520 | Q116: -80
A117: 2022-01-05 | B117: 114 | C117: 16 | D117: 2022-01-05 | E117: 4 | F117: =IF(ISNA(VLOOKUP(E117,تعريفات!$A$2:$B$600,2,FALSE))," ",VLOOKUP(E117,تعريفات!$A$2:$B$600,2,FALSE)) -> منصور عيد | G117: =IF(E117="","",IFERROR(_xlfn.SINGLE(Singlecellextract(F117,تعريفات!$B$2:$C$1000,2)),"")) -> 61613 | H117: 38888 | I117: 282538 | J117: 17360 | K117: 56320 | L117: 38960 | M117: 159432 | N117: 17340 | O117: 56120 | P117: 38780 | Q117: -180 | R117: =Q117+150 -> -30
A118: 2022-01-05 | B118: 115 | C118: 17 | D118: 2022-01-05 | E118: 6 | F118: =IF(ISNA(VLOOKUP(E118,تعريفات!$A$2:$B$600,2,FALSE))," ",VLOOKUP(E118,تعريفات!$A$2:$B$600,2,FALSE)) -> منيف عايد | G118: =IF(E118="","",IFERROR(_xlfn.SINGLE(Singlecellextract(F118,تعريفات!$B$2:$C$1000,2)),"")) -> 61463, 61604, 61457, 61460, 59481, 61601 | H118: 38889 | I118: 282530 | J118: 17180 | K118: 55660 | L118: 38480 | M118: 159426 | N118: 17220 | O118: 55620 | P118: 38400 | Q118: -80
A119: 2022-01-05 | B119: 116 | C119: 18 | D119: 2022-01-05 | E119: 7 | F119: =IF(ISNA(VLOOKUP(E119,تعريفات!$A$2:$B$600,2,FALSE))," ",VLOOKUP(E119,تعريفات!$A$2:$B$600,2,FALSE)) -> علي عبدالله | G119: =IF(E119="","",IFERROR(_xlfn.SINGLE(Singlecellextract(F119,تعريفات!$B$2:$C$1000,2)),"")) -> 61457 | H119: 38890 | I119: 282534 | J119: 17580 | K119: 55480 | L119: 37900 | M119: 159427 | N119: 17620 | O119: 55380 | P119: 37760 | Q119: -140
A120: 2022-01-06 | B120: 117 | C120: 1 | D120: 2022-01-06 | E120: 24 | F120: =IF(ISNA(VLOOKUP(E120,تعريفات!$A$2:$B$600,2,FALSE))," ",VLOOKUP(E120,تعريفات!$A$2:$B$600,2,FALSE)) -> هايل الركيبات | G120: =IF(E120="","",IFERROR(_xlfn.SINGLE(Singlecellextract(F120,تعريفات!$B$2:$C$1000,2)),"")) -> 61610 | H120: 38891 | I120: 282549 | J120: 17540 | K120: 55340 | L120: 37800 | M120: 159439 | N120: 17460 | O120: 55160 | P120: 37700 | Q120: -100
A121: 2022-01-06 | B121: 118 | C121: 2 | D121: 2022-01-06 | E121: 10 | F121: =IF(ISNA(VLOOKUP(E121,تعريفات!$A$2:$B$600,2,FALSE))," ",VLOOKUP(E121,تعريفات!$A$2:$B$600,2,FALSE)) -> فؤاد عيسى | G121: =IF(E121="","",IFERROR(_xlfn.SINGLE(Singlecellextract(F121,تعريفات!$B$2:$C$1000,2)),"")) -> 61586 | H121: 38892 | I121: 282552 | J121: 17380 | K121: 55220 | L121: 37840 | M121: 159440 | N121: 17460 | O121: 55300 | P121: 37840 | Q121: 0
A122: 2022-01-06 | B122: 119 | C122: 3 | D122: 2022-01-06 | E122: 13 | F122: =IF(ISNA(VLOOKUP(E122,تعريفات!$A$2:$B$600,2,FALSE))," ",VLOOKUP(E122,تعريفات!$A$2:$B$600,2,FALSE)) -> فندي محمد | G122: =IF(E122="","",IFERROR(_xlfn.SINGLE(Singlecellextract(F122,تعريفات!$B$2:$C$1000,2)),"")) -> 61601, 6567, 59484 | H122: 38893 | I122: 282554 | J122: 17000 | K122: 55300 | L122: 38300 | M122: 159444 | N122: 17120 | O122: 55260 | P122: 38140 | Q122: -160 | R122: =Q122+150 -> -10
A123: 2022-01-06 | B123: 120 | C123: 4 | D123: 2022-01-06 | E123: 17 | F123: =IF(ISNA(VLOOKUP(E123,تعريفات!$A$2:$B$600,2,FALSE))," ",VLOOKUP(E123,تعريفات!$A$2:$B$600,2,FALSE)) -> هاني محمد | G123: =IF(E123="","",IFERROR(_xlfn.SINGLE(Singlecellextract(F123,تعريفات!$B$2:$C$1000,2)),"")) -> 59478, 61631 | H123: 38894 | I123: 282556 | J123: 17700 | K123: 55560 | L123: 37860 | M123: 159445 | N123: 17560 | O123: 55380 | P123: 37820 | Q123: -40
A124: 2022-01-06 | B124: 121 | C124: 5 | D124: 2022-01-06 | E124: 8 | F124: =IF(ISNA(VLOOKUP(E124,تعريفات!$A$2:$B$600,2,FALSE))," ",VLOOKUP(E124,تعريفات!$A$2:$B$600,2,FALSE)) -> فايز علي | G124: =IF(E124="","",IFERROR(_xlfn.SINGLE(Singlecellextract(F124,تعريفات!$B$2:$C$1000,2)),"")) -> 59484 | H124: 38895 | I124: 282559 | J124: 17660 | K124: 55760 | L124: 38100 | M124: 159448 | N124: 17740 | O124: 55720 | P124: 37980 | Q124: -120
A125: 2022-01-06 | B125: 122 | C125: 6 | D125: 2022-01-06 | E125: 30 | F125: =IF(ISNA(VLOOKUP(E125,تعريفات!$A$2:$B$600,2,FALSE))," ",VLOOKUP(E125,تعريفات!$A$2:$B$600,2,FALSE)) -> فؤاد الرفايعة | G125: =IF(E125="","",IFERROR(_xlfn.SINGLE(Singlecellextract(F125,تعريفات!$B$2:$C$1000,2)),"")) -> 61604, 39532, 61592, 61625, 61607 | H125: 38896 | I125: 282563 | J125: 17200 | K125: 55540 | L125: 38340 | M125: 159446 | N125: 17300 | O125: 55540 | P125: 38240 | Q125: -100
A126: 2022-01-06 | B126: 123 | C126: 7 | D126: 2022-01-06 | E126: 25 | F126: =IF(ISNA(VLOOKUP(E126,تعريفات!$A$2:$B$600,2,FALSE))," ",VLOOKUP(E126,تعريفات!$A$2:$B$600,2,FALSE)) -> صلاح الركيبات | G126: =IF(E126="","",IFERROR(_xlfn.SINGLE(Singlecellextract(F126,تعريفات!$B$2:$C$1000,2)),"")) -> 61619, 61637, 61622, 48407 | H126: 38897 | I126: 282571 | J126: 17660 | K126: 55820 | L126: 38160 | M126: 159466 | N126: 17640 | O126: 55520 | P126: 37880 | Q126: -280 | R126: =Q126+150 -> -130
A127: 2022-01-06 | B127: 124 | C127: 8 | D127: 2022-01-06 | E127: 26 | F127: =IF(ISNA(VLOOKUP(E127,تعريفات!$A$2:$B$600,2,FALSE))," ",VLOOKUP(E127,تعريفات!$A$2:$B$600,2,FALSE)) -> محمود الرفايعة | G127: =IF(E127="","",IFERROR(_xlfn.SINGLE(Singlecellextract(F127,تعريفات!$B$2:$C$1000,2)),"")) -> 61607 | H127: 38898 | I127: 282572 | J127: 17600 | K127: 55700 | L127: 38100 | M127: 159453 | N127: 17600 | O127: 55560 | P127: 37960 | Q127: -140
A128: 2022-01-06 | B128: 125 | C128: 9 | D128: 2022-01-06 | E128: 20 | F128: =IF(ISNA(VLOOKUP(E128,تعريفات!$A$2:$B$600,2,FALSE))," ",VLOOKUP(E128,تعريفات!$A$2:$B$600,2,FALSE)) -> عبدالله سالم | G128: =IF(E128="","",IFERROR(_xlfn.SINGLE(Singlecellextract(F128,تعريفات!$B$2:$C$1000,2)),"")) -> 61640 | H128: 38899 | I128: 282576 | J128: 17640 | K128: 55760 | L128: 38120 | M128: 159458 | N128: 17580 | O128: 55860 | P128: 38280 | Q128: 160
A129: 2022-01-06 | B129: 126 | C129: 10 | D129: 2022-01-06 | E129: 18 | F129: =IF(ISNA(VLOOKUP(E129,تعريفات!$A$2:$B$600,2,FALSE))," ",VLOOKUP(E129,تعريفات!$A$2:$B$600,2,FALSE)) -> خالد القيسي | G129: =IF(E129="","",IFERROR(_xlfn.SINGLE(Singlecellextract(F129,تعريفات!$B$2:$C$1000,2)),"")) -> 61622 | H129: 38900 | I129: 282578 | J129: 17520 | K129: 55660 | L129: 38140 | M129: 159463 | N129: 17600 | O129: 55660 | P129: 38060 | Q129: -80
A130: 2022-01-06 | B130: 127 | C130: 11 | D130: 2022-01-06 | E130: 5 | F130: =IF(ISNA(VLOOKUP(E130,تعريفات!$A$2:$B$600,2,FALSE))," ",VLOOKUP(E130,تعريفات!$A$2:$B$600,2,FALSE)) -> محمود عايد | G130: =IF(E130="","",IFERROR(_xlfn.SINGLE(Singlecellextract(F130,تعريفات!$B$2:$C$1000,2)),"")) -> 61460, 61631, 59481, 6567 | H130: 38901 | I130: 282584 | J130: 171000 | K130: 55880 | L130: -115120 | M130: 159460 | N130: 171000 | O130: 55620 | P130: -115380 | Q130: -260 | R130: =Q130+150 -> -110
A131: 2022-01-06 | B131: 128 | C131: 12 | D131: 2022-01-06 | E131: 28 | F131: =IF(ISNA(VLOOKUP(E131,تعريفات!$A$2:$B$600,2,FALSE))," ",VLOOKUP(E131,تعريفات!$A$2:$B$600,2,FALSE)) -> رفيق البدور | G131: =IF(E131="","",IFERROR(_xlfn.SINGLE(Singlecellextract(F131,تعريفات!$B$2:$C$1000,2)),"")) -> 61631, 61604 | H131: 38902 | I131: 282588 | J131: 17240 | K131: 55800 | L131: 38560 | M131: 159465 | N131: 17180 | O131: 55700 | P131: 38520 | Q131: -40
A132: 2022-01-06 | B132: 129 | C132: 13 | D132: 2022-01-06 | E132: 4 | F132: =IF(ISNA(VLOOKUP(E132,تعريفات!$A$2:$B$600,2,FALSE))," ",VLOOKUP(E132,تعريفات!$A$2:$B$600,2,FALSE)) -> منصور عيد | G132: =IF(E132="","",IFERROR(_xlfn.SINGLE(Singlecellextract(F132,تعريفات!$B$2:$C$1000,2)),"")) -> 61613 | H132: 38903 | I132: 282591 | J132: 17220 | K132: 55800 | L132: 38580 | M132: 159481 | N132: 17280 | O132: 55720 | P132: 38440 | Q132: =P132-L132 -> -140
A133: =D133 -> 2022-01-06 | B133: 130 | C133: 14 | D133: 2022-01-06 | E133: 6 | F133: =IF(ISNA(VLOOKUP(E133,تعريفات!$A$2:$B$600,2,FALSE))," ",VLOOKUP(E133,تعريفات!$A$2:$B$600,2,FALSE)) -> منيف عايد | G133: =IF(E133="","",IFERROR(_xlfn.SINGLE(Singlecellextract(F133,تعريفات!$B$2:$C$1000,2)),"")) -> 61463, 61604, 61457, 61460, 59481, 61601 | H133: 38904 | I133: 282596 | J133: 17160 | K133: 55660 | L133: =K133-J133 -> 38500 | M133: 159477 | N133: 17340 | O133: 55600 | P133: 38260 | Q133: -240 | R133: =Q133+150 -> -90
A134: 2022-01-06 | B134: =B133+1 -> 131 | C134: 15 | D134: 2022-01-06 | E134: 23 | F134: =IF(ISNA(VLOOKUP(E134,تعريفات!$A$2:$B$600,2,FALSE))," ",VLOOKUP(E134,تعريفات!$A$2:$B$600,2,FALSE)) -> محمد عريبان | G134: =IF(E134="","",IFERROR(_xlfn.SINGLE(Singlecellextract(F134,تعريفات!$B$2:$C$1000,2)),"")) -> 61595 | H134: 38905 | I134: 282598 | J134: 17340 | K134: 55980 | L134: 38640 | M134: 159480 | N134: 17460 | O134: 55940 | P134: =O134-N134 -> 38480 | Q134: -160 | R134: =Q134+150 -> -10
A135: 2022-01-06 | B135: 132 | C135: 16 | D135: 2022-01-06 | E135: 31 | F135: =IF(ISNA(VLOOKUP(E135,تعريفات!$A$2:$B$600,2,FALSE))," ",VLOOKUP(E135,تعريفات!$A$2:$B$600,2,FALSE)) -> محمد علي | G135: =IF(E135="","",IFERROR(_xlfn.SINGLE(Singlecellextract(F135,تعريفات!$B$2:$C$1000,2)),"")) -> 35577, 39532, 61586, 61604, 48610, 34617, 48581, 61631 | H135: 38906 | I135: 282602 | J135: 19520 | K135: 56100 | L135: 36580 | M135: 159475 | N135: 19420 | O135: 55800 | P135: 36380 | Q135: -200 | R135: =Q135+150 -> -50
A136: 2022-01-06 | B136: 133 | C136: 17 | D136: 2022-01-06 | E136: 3 | F136: =IF(ISNA(VLOOKUP(E136,تعريفات!$A$2:$B$600,2,FALSE))," ",VLOOKUP(E136,تعريفات!$A$2:$B$600,2,FALSE)) -> جهاد شاهين | G136: =IF(E136="","",IFERROR(_xlfn.SINGLE(Singlecellextract(F136,تعريفات!$B$2:$C$1000,2)),"")) -> 59490 | H136: 38907 | I136: 282605 | J136: 17880 | K136: 56060 | L136: 38180 | M136: 159483 | N136: 17800 | O136: 55920 | P136: 38120 | Q136: -60
A137: 2022-01-08 | B137: 134 | C137: 1 | D137: 2022-01-08 | E137: 24 | F137: =IF(ISNA(VLOOKUP(E137,تعريفات!$A$2:$B$600,2,FALSE))," ",VLOOKUP(E137,تعريفات!$A$2:$B$600,2,FALSE)) -> هايل الركيبات | G137: =IF(E137="","",IFERROR(_xlfn.SINGLE(Singlecellextract(F137,تعريفات!$B$2:$C$1000,2)),"")) -> 61610 | H137: 38908 | I137: 282739 | J137: 17580 | K137: 55740 | L137: 38160 | M137: 159489 | N137: 17400 | O137: 55520 | P137: 38120 | Q137: -40
A138: 2022-01-08 | B138: 135 | C138: 2 | D138: 2022-01-08 | E138: 8 | F138: =IF(ISNA(VLOOKUP(E138,تعريفات!$A$2:$B$600,2,FALSE))," ",VLOOKUP(E138,تعريفات!$A$2:$B$600,2,FALSE)) -> فايز علي | G138: =IF(E138="","",IFERROR(_xlfn.SINGLE(Singlecellextract(F138,تعريفات!$B$2:$C$1000,2)),"")) -> 59484 | H138: 38909 | I138: 282742 | J138: 17920 | K138: 551000 | L138: 533080 | M138: 159491 | N138: 17740 | O138: 55420 | P138: 37680 | Q138: -495400
A139: 2022-01-08 | B139: 136 | C139: 3 | D139: 2022-01-08 | E139: 17 | F139: =IF(ISNA(VLOOKUP(E139,تعريفات!$A$2:$B$600,2,FALSE))," ",VLOOKUP(E139,تعريفات!$A$2:$B$600,2,FALSE)) -> هاني محمد | G139: =IF(E139="","",IFERROR(_xlfn.SINGLE(Singlecellextract(F139,تعريفات!$B$2:$C$1000,2)),"")) -> 59478, 61631 | H139: 38910 | I139: 282745 | J139: 17540 | K139: 55620 | L139: 38080 | M139: 159493 | N139: 17600 | O139: 55700 | P139: 38100 | Q139: 20
A140: 2022-01-08 | B140: 137 | C140: 4 | D140: 2022-01-08 | E140: 27 | F140: =IF(ISNA(VLOOKUP(E140,تعريفات!$A$2:$B$600,2,FALSE))," ",VLOOKUP(E140,تعريفات!$A$2:$B$600,2,FALSE)) -> محمد سلامة | G140: =IF(E140="","",IFERROR(_xlfn.SINGLE(Singlecellextract(F140,تعريفات!$B$2:$C$1000,2)),"")) -> 59487, 61454, 39532, 61457, 59481, 61610 | H140: 38911 | I140: 282747 | J140: 17760 | K140: 55800 | L140: 38040 | M140: 159495 | N140: 17580 | O140: 55760 | P140: 38180 | Q140: 140
A141: 2022-01-08 | B141: 138 | C141: 5 | D141: 2022-01-08 | E141: 12 | F141: =IF(ISNA(VLOOKUP(E141,تعريفات!$A$2:$B$600,2,FALSE))," ",VLOOKUP(E141,تعريفات!$A$2:$B$600,2,FALSE)) -> سعيد سلمان | G141: =IF(E141="","",IFERROR(_xlfn.SINGLE(Singlecellextract(F141,تعريفات!$B$2:$C$1000,2)),"")) -> 59481 | H141: 38912 | I141: 282749 | J141: 17360 | K141: 55780 | L141: 38420 | M141: 159496 | N141: 17180 | O141: 55600 | P141: 38420 | Q141: 0
A142: 2022-01-08 | B142: 139 | C142: 6 | D142: 2022-01-08 | E142: 29 | F142: =IF(ISNA(VLOOKUP(E142,تعريفات!$A$2:$B$600,2,FALSE))," ",VLOOKUP(E142,تعريفات!$A$2:$B$600,2,FALSE)) -> محمد المغربي | G142: =IF(E142="","",IFERROR(_xlfn.SINGLE(Singlecellextract(F142,تعريفات!$B$2:$C$1000,2)),"")) -> 61451 | H142: 38913 | I142: 282752 | J142: 17860 | K142: 56060 | L142: 38200 | M142: 159498 | N142: 17720 | O142: 56020 | P142: 38300 | Q142: 100
A143: 2022-01-08 | B143: 140 | C143: 7 | D143: 2022-01-08 | E143: 22 | F143: =IF(ISNA(VLOOKUP(E143,تعريفات!$A$2:$B$600,2,FALSE))," ",VLOOKUP(E143,تعريفات!$A$2:$B$600,2,FALSE)) -> علي حمد | G143: =IF(E143="","",IFERROR(_xlfn.SINGLE(Singlecellextract(F143,تعريفات!$B$2:$C$1000,2)),"")) -> 61637 | H143: 38914 | I143: 282751 | J143: 17540 | K143: 55580 | L143: 38040 | M143: 159502 | N143: 17400 | O143: 55480 | P143: 38080 | Q143: 40
A144: 2022-01-08 | B144: 141 | C144: 8 | D144: 2022-01-08 | E144: 25 | F144: =IF(ISNA(VLOOKUP(E144,تعريفات!$A$2:$B$600,2,FALSE))," ",VLOOKUP(E144,تعريفات!$A$2:$B$600,2,FALSE)) -> صلاح الركيبات | G144: =IF(E144="","",IFERROR(_xlfn.SINGLE(Singlecellextract(F144,تعريفات!$B$2:$C$1000,2)),"")) -> 61619, 61637, 61622, 48407 | H144: 38915 | I144: 282753 | J144: 17780 | K144: 56000 | L144: 38220 | M144: 159506 | N144: 17560 | O144: 55880 | P144: =O144-N144 -> 38320 | Q144: 100
A145: 2022-01-08 | B145: 142 | C145: 9 | D145: 2022-01-08 | E145: 9 | F145: =IF(ISNA(VLOOKUP(E145,تعريفات!$A$2:$B$600,2,FALSE))," ",VLOOKUP(E145,تعريفات!$A$2:$B$600,2,FALSE)) -> سليمان خضير | G145: =IF(E145="","",IFERROR(_xlfn.SINGLE(Singlecellextract(F145,تعريفات!$B$2:$C$1000,2)),"")) -> 61580, 61631 | H145: 38916 | I145: 282754 | J145: 17840 | K145: 55400 | L145: 37560 | M145: 1591000 | N145: 17680 | O145: 55300 | P145: 37620 | Q145: 60
A146: 2022-01-08 | B146: 143 | C146: 10 | D146: 2022-01-08 | E146: 1 | F146: =IF(ISNA(VLOOKUP(E146,تعريفات!$A$2:$B$600,2,FALSE))," ",VLOOKUP(E146,تعريفات!$A$2:$B$600,2,FALSE)) -> محي الدين | G146: =IF(E146="","",IFERROR(_xlfn.SINGLE(Singlecellextract(F146,تعريفات!$B$2:$C$1000,2)),"")) -> 61598 | H146: 38917 | I146: 282757 | J146: 17900 | K146: 55600 | L146: 37700 | M146: 159510 | N146: 17740 | O146: 551000 | P146: 533260 | Q146: 495560
A147: 2022-01-08 | B147: 144 | C147: 11 | D147: 2022-01-08 | E147: 23 | F147: =IF(ISNA(VLOOKUP(E147,تعريفات!$A$2:$B$600,2,FALSE))," ",VLOOKUP(E147,تعريفات!$A$2:$B$600,2,FALSE)) -> محمد عريبان | G147: =IF(E147="","",IFERROR(_xlfn.SINGLE(Singlecellextract(F147,تعريفات!$B$2:$C$1000,2)),"")) -> 61595 | H147: 38918 | I147: 282758 | J147: 17420 | K147: 55460 | L147: 38040 | M147: 159509 | N147: 17440 | O147: 55560 | P147: 38120 | Q147: 80
A148: 2022-01-08 | B148: 145 | C148: 12 | D148: 2022-01-08 | E148: 7 | F148: =IF(ISNA(VLOOKUP(E148,تعريفات!$A$2:$B$600,2,FALSE))," ",VLOOKUP(E148,تعريفات!$A$2:$B$600,2,FALSE)) -> علي عبدالله | G148: =IF(E148="","",IFERROR(_xlfn.SINGLE(Singlecellextract(F148,تعريفات!$B$2:$C$1000,2)),"")) -> 61457 | H148: 38919 | I148: 282759 | J148: 17600 | K148: 55760 | L148: 38160 | M148: 159508 | N148: 17680 | O148: 55880 | P148: 38200 | Q148: 40
A149: 2022-01-08 | B149: 146 | C149: 13 | D149: 2022-01-08 | E149: 20 | F149: =IF(ISNA(VLOOKUP(E149,تعريفات!$A$2:$B$600,2,FALSE))," ",VLOOKUP(E149,تعريفات!$A$2:$B$600,2,FALSE)) -> عبدالله سالم | G149: =IF(E149="","",IFERROR(_xlfn.SINGLE(Singlecellextract(F149,تعريفات!$B$2:$C$1000,2)),"")) -> 61640 | H149: 38920 | I149: 282760 | J149: 17760 | K149: 55400 | L149: 37640 | M149: 159507 | N149: 17540 | O149: 55300 | P149: 37760 | Q149: 120
A150: 2022-01-08 | B150: 147 | C150: 14 | D150: 2022-01-08 | E150: 11 | F150: =IF(ISNA(VLOOKUP(E150,تعريفات!$A$2:$B$600,2,FALSE))," ",VLOOKUP(E150,تعريفات!$A$2:$B$600,2,FALSE)) -> عيد هليل | G150: =IF(E150="","",IFERROR(_xlfn.SINGLE(Singlecellextract(F150,تعريفات!$B$2:$C$1000,2)),"")) -> 61634 | H150: 38921 | I150: 282762 | J150: 171000 | K150: 55640 | L150: -115360 | M150: 159512 | N150: 17460 | O150: 55700 | P150: 38240 | Q150: 153600
A151: 2022-01-08 | B151: 148 | C151: 15 | D151: 2022-01-08 | E151: 13 | F151: =IF(ISNA(VLOOKUP(E151,تعريفات!$A$2:$B$600,2,FALSE))," ",VLOOKUP(E151,تعريفات!$A$2:$B$600,2,FALSE)) -> فندي محمد | G151: =IF(E151="","",IFERROR(_xlfn.SINGLE(Singlecellextract(F151,تعريفات!$B$2:$C$1000,2)),"")) -> 61601, 6567, 59484 | H151: 38922 | I151: 282769 | J151: 17140 | K151: 55440 | L151: 38300 | M151: 159514 | N151: 17160 | O151: 55480 | P151: 38320 | Q151: 20
A152: 2022-01-08 | B152: 149 | C152: 16 | D152: 2022-01-08 | E152: 15 | F152: =IF(ISNA(VLOOKUP(E152,تعريفات!$A$2:$B$600,2,FALSE))," ",VLOOKUP(E152,تعريفات!$A$2:$B$600,2,FALSE)) -> طارق خليف | G152: =IF(E152="","",IFERROR(_xlfn.SINGLE(Singlecellextract(F152,تعريفات!$B$2:$C$1000,2)),"")) -> 61628, 59481, 61460, 61625, 61640, 35577 | H152: 38923 | I152: 282777 | J152: 17220 | K152: 55360 | L152: 38140 | M152: 159518 | N152: 17100 | O152: 55240 | P152: 38140 | Q152: 0
A153: 2022-01-08 | B153: 150 | C153: 17 | D153: 2022-01-08 | E153: 31 | F153: =IF(ISNA(VLOOKUP(E153,تعريفات!$A$2:$B$600,2,FALSE))," ",VLOOKUP(E153,تعريفات!$A$2:$B$600,2,FALSE)) -> محمد علي | G153: =IF(E153="","",IFERROR(_xlfn.SINGLE(Singlecellextract(F153,تعريفات!$B$2:$C$1000,2)),"")) -> 35577, 39532, 61586, 61604, 48610, 34617, 48581, 61631 | H153: 38924 | I153: 282779 | J153: 19540 | K153: 55620 | L153: 36080 | M153: 159527 | N153: 19380 | O153: 55440 | P153: 36060 | Q153: -20
A154: 2022-01-08 | B154: 151 | C154: 18 | D154: 2022-01-08 | E154: 3 | F154: =IF(ISNA(VLOOKUP(E154,تعريفات!$A$2:$B$600,2,FALSE))," ",VLOOKUP(E154,تعريفات!$A$2:$B$600,2,FALSE)) -> جهاد شاهين | G154: =IF(E154="","",IFERROR(_xlfn.SINGLE(Singlecellextract(F154,تعريفات!$B$2:$C$1000,2)),"")) -> 59490 | H154: 38925 | I154: 282794 | J154: 17820 | K154: 55720 | L154: 37900 | M154: 159536 | N154: 17780 | O154: 55640 | P154: 37860 | Q154: -40
A155: 2022-01-09 | B155: 152 | C155: 1 | D155: 2022-01-09 | E155: 10 | F155: =IF(ISNA(VLOOKUP(E155,تعريفات!$A$2:$B$600,2,FALSE))," ",VLOOKUP(E155,تعريفات!$A$2:$B$600,2,FALSE)) -> فؤاد عيسى | G155: =IF(E155="","",IFERROR(_xlfn.SINGLE(Singlecellextract(F155,تعريفات!$B$2:$C$1000,2)),"")) -> 61586 | H155: 38926 | I155: 282829 | J155: 17420 | K155: 55680 | L155: 38260 | M155: 159539 | N155: 17420 | O155: 55680 | P155: 38260 | Q155: 0
A156: 2022-01-09 | B156: 153 | C156: 2 | D156: 2022-01-09 | E156: 27 | F156: =IF(ISNA(VLOOKUP(E156,تعريفات!$A$2:$B$600,2,FALSE))," ",VLOOKUP(E156,تعريفات!$A$2:$B$600,2,FALSE)) -> محمد سلامة | G156: =IF(E156="","",IFERROR(_xlfn.SINGLE(Singlecellextract(F156,تعريفات!$B$2:$C$1000,2)),"")) -> 59487, 61454, 39532, 61457, 59481, 61610 | H156: 38927 | I156: 282832 | J156: 17740 | K156: 55420 | L156: 37680 | M156: 159540 | N156: 17600 | O156: 55340 | P156: 37740 | Q156: 60
A157: 2022-01-09 | B157: 154 | C157: 3 | D157: 2022-01-09 | E157: 22 | F157: =IF(ISNA(VLOOKUP(E157,تعريفات!$A$2:$B$600,2,FALSE))," ",VLOOKUP(E157,تعريفات!$A$2:$B$600,2,FALSE)) -> علي حمد | G157: =IF(E157="","",IFERROR(_xlfn.SINGLE(Singlecellextract(F157,تعريفات!$B$2:$C$1000,2)),"")) -> 61637 | H157: 38928 | I157: 282833 | J157: 17480 | K157: 55440 | L157: 37960 | M157: 159542 | N157: 17360 | O157: 55360 | P157: 38000 | Q157: 40
A158: 2022-01-09 | B158: 155 | C158: 4 | D158: 2022-01-09 | E158: 29 | F158: =IF(ISNA(VLOOKUP(E158,تعريفات!$A$2:$B$600,2,FALSE))," ",VLOOKUP(E158,تعريفات!$A$2:$B$600,2,FALSE)) -> محمد المغربي | G158: =IF(E158="","",IFERROR(_xlfn.SINGLE(Singlecellextract(F158,تعريفات!$B$2:$C$1000,2)),"")) -> 61451 | H158: 38929 | I158: 282834 | J158: 17960 | K158: 55840 | L158: 37880 | M158: 159547 | N158: 17720 | O158: 55660 | P158: 37940 | Q158: 60
A159: 2022-01-09 | B159: 156 | C159: 5 | D159: 2022-01-09 | E159: 9 | F159: =IF(ISNA(VLOOKUP(E159,تعريفات!$A$2:$B$600,2,FALSE))," ",VLOOKUP(E159,تعريفات!$A$2:$B$600,2,FALSE)) -> سليمان خضير | G159: =IF(E159="","",IFERROR(_xlfn.SINGLE(Singlecellextract(F159,تعريفات!$B$2:$C$1000,2)),"")) -> 61580, 61631 | H159: 38930 | I159: 282837 | J159: 17820 | K159: 55620 | L159: 37800 | M159: 159546 | N159: 17680 | O159: 55420 | P159: 37740 | Q159: -60
A160: 2022-01-09 | B160: 157 | C160: 6 | D160: 2022-01-09 | E160: 11 | F160: =IF(ISNA(VLOOKUP(E160,تعريفات!$A$2:$B$600,2,FALSE))," ",VLOOKUP(E160,تعريفات!$A$2:$B$600,2,FALSE)) -> عيد هليل | G160: =IF(E160="","",IFERROR(_xlfn.SINGLE(Singlecellextract(F160,تعريفات!$B$2:$C$1000,2)),"")) -> 61634 | H160: 38931 | I160: 282839 | J160: 17440 | K160: 55380 | L160: 37940 | M160: 159548 | N160: 17480 | O160: 55480 | P160: 38000 | Q160: 60
A161: 2022-01-09 | B161: 158 | C161: 7 | D161: 2022-01-09 | E161: 12 | F161: =IF(ISNA(VLOOKUP(E161,تعريفات!$A$2:$B$600,2,FALSE))," ",VLOOKUP(E161,تعريفات!$A$2:$B$600,2,FALSE)) -> سعيد سلمان | G161: =IF(E161="","",IFERROR(_xlfn.SINGLE(Singlecellextract(F161,تعريفات!$B$2:$C$1000,2)),"")) -> 59481 | H161: 38932 | I161: 282840 | J161: 17340 | K161: 55740 | L161: 38400 | M161: 159545 | N161: 17220 | O161: 55620 | P161: 38400 | Q161: 0
A162: 2022-01-09 | B162: 159 | C162: 8 | D162: 2022-01-09 | E162: 1 | F162: =IF(ISNA(VLOOKUP(E162,تعريفات!$A$2:$B$600,2,FALSE))," ",VLOOKUP(E162,تعريفات!$A$2:$B$600,2,FALSE)) -> محي الدين | G162: =IF(E162="","",IFERROR(_xlfn.SINGLE(Singlecellextract(F162,تعريفات!$B$2:$C$1000,2)),"")) -> 61598 | H162: 38933 | I162: 282845 | J162: 17740 | K162: 55680 | L162: 37940 | M162: 159556 | N162: 17780 | O162: 55760 | P162: 37980 | Q162: 40
A163: 2022-01-09 | B163: 160 | C163: 9 | D163: 2022-01-09 | E163: 7 | F163: =IF(ISNA(VLOOKUP(E163,تعريفات!$A$2:$B$600,2,FALSE))," ",VLOOKUP(E163,تعريفات!$A$2:$B$600,2,FALSE)) -> علي عبدالله | G163: =IF(E163="","",IFERROR(_xlfn.SINGLE(Singlecellextract(F163,تعريفات!$B$2:$C$1000,2)),"")) -> 61457 | H163: 38934 | I163: 282849 | J163: 17660 | K163: 55820 | L163: 38160 | M163: 159557 | N163: 17680 | O163: 55840 | P163: 38160 | Q163: 0
A164: 2022-01-09 | B164: 161 | C164: 10 | D164: 2022-01-09 | E164: 26 | F164: =IF(ISNA(VLOOKUP(E164,تعريفات!$A$2:$B$600,2,FALSE))," ",VLOOKUP(E164,تعريفات!$A$2:$B$600,2,FALSE)) -> محمود الرفايعة | G164: =IF(E164="","",IFERROR(_xlfn.SINGLE(Singlecellextract(F164,تعريفات!$B$2:$C$1000,2)),"")) -> 61607 | H164: 38935 | I164: 282853 | J164: 17620 | K164: 55580 | L164: 37960 | M164: 159558 | N164: 171000 | O164: 55440 | P164: -115560 | Q164: -153520
A165: 2022-01-09 | B165: 162 | C165: 11 | D165: 2022-01-09 | E165: 30 | F165: =IF(ISNA(VLOOKUP(E165,تعريفات!$A$2:$B$600,2,FALSE))," ",VLOOKUP(E165,تعريفات!$A$2:$B$600,2,FALSE)) -> فؤاد الرفايعة | G165: =IF(E165="","",IFERROR(_xlfn.SINGLE(Singlecellextract(F165,تعريفات!$B$2:$C$1000,2)),"")) -> 61604, 39532, 61592, 61625, 61607 | H165: 38936 | I165: 282854 | J165: 17440 | K165: 55540 | L165: 38100 | M165: 159559 | N165: 17280 | O165: 55340 | P165: 38060 | Q165: -40
A166: 2022-01-09 | B166: 163 | C166: 12 | D166: 2022-01-09 | E166: 15 | F166: =IF(ISNA(VLOOKUP(E166,تعريفات!$A$2:$B$600,2,FALSE))," ",VLOOKUP(E166,تعريفات!$A$2:$B$600,2,FALSE)) -> طارق خليف | G166: =IF(E166="","",IFERROR(_xlfn.SINGLE(Singlecellextract(F166,تعريفات!$B$2:$C$1000,2)),"")) -> 61628, 59481, 61460, 61625, 61640, 35577 | H166: 38937 | I166: 282857 | J166: 17240 | K166: 55600 | L166: 38360 | M166: 159562 | N166: 17080 | O166: 55460 | P166: 38380 | Q166: 20
A167: 2022-01-09 | B167: 164 | C167: 13 | D167: 2022-01-09 | E167: 19 | F167: =IF(ISNA(VLOOKUP(E167,تعريفات!$A$2:$B$600,2,FALSE))," ",VLOOKUP(E167,تعريفات!$A$2:$B$600,2,FALSE)) -> بسام عودة | G167: =IF(E167="","",IFERROR(_xlfn.SINGLE(Singlecellextract(F167,تعريفات!$B$2:$C$1000,2)),"")) -> 61625 | H167: 38938 | I167: 282864 | J167: 17320 | K167: 55860 | L167: 38540 | M167: 159571 | N167: 17420 | O167: 55880 | P167: 38460 | Q167: -80
A168: 2022-01-09 | B168: 165 | C168: 14 | D168: 2022-01-09 | E168: 16 | F168: =IF(ISNA(VLOOKUP(E168,تعريفات!$A$2:$B$600,2,FALSE))," ",VLOOKUP(E168,تعريفات!$A$2:$B$600,2,FALSE)) -> حسين اللوافية | G168: =IF(E168="","",IFERROR(_xlfn.SINGLE(Singlecellextract(F168,تعريفات!$B$2:$C$1000,2)),"")) -> 61589, 61625, 59481, 6567, 48581, 48610, 61610, 61619 | H168: 38939 | I168: 282872 | J168: 17080 | K168: 55560 | L168: 38480 | M168: 159587 | N168: 17140 | O168: 551000 | P168: 533860 | Q168: 495380
A169: 2022-01-09 | B169: 166 | C169: 15 | D169: 2022-01-09 | E169: 28 | F169: =IF(ISNA(VLOOKUP(E169,تعريفات!$A$2:$B$600,2,FALSE))," ",VLOOKUP(E169,تعريفات!$A$2:$B$600,2,FALSE)) -> رفيق البدور | G169: =IF(E169="","",IFERROR(_xlfn.SINGLE(Singlecellextract(F169,تعريفات!$B$2:$C$1000,2)),"")) -> 61631, 61604 | H169: 38940 | I169: 282878 | J169: 17280 | K169: 56040 | L169: 38760 | M169: 159574 | N169: 17160 | O169: 55860 | P169: 38700 | Q169: -60
A170: 2022-01-09 | B170: 167 | C170: 16 | D170: 2022-01-09 | E170: 18 | F170: =IF(ISNA(VLOOKUP(E170,تعريفات!$A$2:$B$600,2,FALSE))," ",VLOOKUP(E170,تعريفات!$A$2:$B$600,2,FALSE)) -> خالد القيسي | G170: =IF(E170="","",IFERROR(_xlfn.SINGLE(Singlecellextract(F170,تعريفات!$B$2:$C$1000,2)),"")) -> 61622 | H170: 38941 | I170: 282880 | J170: 17560 | K170: 55760 | L170: 38200 | M170: 159578 | N170: 17600 | O170: 55700 | P170: 38100 | Q170: -100
A171: 2022-01-09 | B171: 168 | C171: 17 | D171: 2022-01-09 | E171: 4 | F171: =IF(ISNA(VLOOKUP(E171,تعريفات!$A$2:$B$600,2,FALSE))," ",VLOOKUP(E171,تعريفات!$A$2:$B$600,2,FALSE)) -> منصور عيد | G171: =IF(E171="","",IFERROR(_xlfn.SINGLE(Singlecellextract(F171,تعريفات!$B$2:$C$1000,2)),"")) -> 61613 | H171: 38942 | I171: 282889 | J171: 17240 | K171: 55720 | L171: 38480 | M171: 159584 | N171: 17260 | O171: 55600 | P171: 38340 | Q171: -140
A172: 2022-01-10 | B172: 169 | C172: 1 | D172: 2022-01-10 | E172: 24 | F172: =IF(ISNA(VLOOKUP(E172,تعريفات!$A$2:$B$600,2,FALSE))," ",VLOOKUP(E172,تعريفات!$A$2:$B$600,2,FALSE)) -> هايل الركيبات | G172: =IF(E172="","",IFERROR(_xlfn.SINGLE(Singlecellextract(F172,تعريفات!$B$2:$C$1000,2)),"")) -> 61610 | H172: 38943 | I172: 282948 | J172: 17620 | K172: 55680 | L172: 38060 | M172: 159590 | N172: 17440 | O172: 55380 | P172: 37940 | Q172: -120
A173: 2022-01-10 | B173: 170 | C173: 2 | D173: 2022-01-10 | E173: 5 | F173: =IF(ISNA(VLOOKUP(E173,تعريفات!$A$2:$B$600,2,FALSE))," ",VLOOKUP(E173,تعريفات!$A$2:$B$600,2,FALSE)) -> محمود عايد | G173: =IF(E173="","",IFERROR(_xlfn.SINGLE(Singlecellextract(F173,تعريفات!$B$2:$C$1000,2)),"")) -> 61460, 61631, 59481, 6567 | H173: 38944 | I173: 282951 | J173: 17680 | K173: 56040 | L173: 38360 | M173: 159593 | N173: 17460 | O173: 55700 | P173: 38240 | Q173: -120
A174: 2022-01-10 | B174: 171 | C174: 3 | D174: 2022-01-10 | E174: 17 | F174: =IF(ISNA(VLOOKUP(E174,تعريفات!$A$2:$B$600,2,FALSE))," ",VLOOKUP(E174,تعريفات!$A$2:$B$600,2,FALSE)) -> هاني محمد | G174: =IF(E174="","",IFERROR(_xlfn.SINGLE(Singlecellextract(F174,تعريفات!$B$2:$C$1000,2)),"")) -> 59478, 61631 | H174: 38945 | I174: 282954 | J174: 17820 | K174: 55660 | L174: 37840 | M174: 159594 | N174: 17640 | O174: 55380 | P174: 37740 | Q174: -100
A175: 2022-01-10 | B175: 172 | C175: 4 | D175: 2022-01-10 | E175: 25 | F175: =IF(ISNA(VLOOKUP(E175,تعريفات!$A$2:$B$600,2,FALSE))," ",VLOOKUP(E175,تعريفات!$A$2:$B$600,2,FALSE)) -> صلاح الركيبات | G175: =IF(E175="","",IFERROR(_xlfn.SINGLE(Singlecellextract(F175,تعريفات!$B$2:$C$1000,2)),"")) -> 61619, 61637, 61622, 48407 | H175: 38946 | I175: 282957 | J175: 17700 | K175: 55720 | L175: 38020 | M175: 159598 | N175: 17540 | O175: 55480 | P175: 37940 | Q175: -80
A176: 2022-01-10 | B176: 173 | C176: 5 | D176: 2022-01-10 | E176: 19 | F176: =IF(ISNA(VLOOKUP(E176,تعريفات!$A$2:$B$600,2,FALSE))," ",VLOOKUP(E176,تعريفات!$A$2:$B$600,2,FALSE)) -> بسام عودة | G176: =IF(E176="","",IFERROR(_xlfn.SINGLE(Singlecellextract(F176,تعريفات!$B$2:$C$1000,2)),"")) -> 61625 | H176: 38947 | I176: 282962 | J176: 17440 | K176: 55480 | L176: 38040 | M176: 159605 | N176: 17460 | O176: 55460 | P176: 38000 | Q176: -40
A177: 2022-01-10 | B177: 174 | C177: 6 | D177: 2022-01-10 | E177: 30 | F177: =IF(ISNA(VLOOKUP(E177,تعريفات!$A$2:$B$600,2,FALSE))," ",VLOOKUP(E177,تعريفات!$A$2:$B$600,2,FALSE)) -> فؤاد الرفايعة | G177: =IF(E177="","",IFERROR(_xlfn.SINGLE(Singlecellextract(F177,تعريفات!$B$2:$C$1000,2)),"")) -> 61604, 39532, 61592, 61625, 61607 | H177: 38948 | I177: 282964 | J177: 17480 | K177: 55360 | L177: 37880 | M177: 159603 | N177: 17280 | O177: 55180 | P177: 37900 | Q177: 20
A178: 2022-01-10 | B178: 175 | C178: 7 | D178: 2022-01-10 | E178: 26 | F178: =IF(ISNA(VLOOKUP(E178,تعريفات!$A$2:$B$600,2,FALSE))," ",VLOOKUP(E178,تعريفات!$A$2:$B$600,2,FALSE)) -> محمود الرفايعة | G178: =IF(E178="","",IFERROR(_xlfn.SINGLE(Singlecellextract(F178,تعريفات!$B$2:$C$1000,2)),"")) -> 61607 | H178: 38949 | I178: 282965 | J178: 17680 | K178: 55600 | L178: 37920 | M178: 159602 | N178: 17520 | O178: 55460 | P178: 37940 | Q178: 20
A179: 2022-01-10 | B179: 176 | C179: 8 | D179: 2022-01-10 | E179: 1 | F179: =IF(ISNA(VLOOKUP(E179,تعريفات!$A$2:$B$600,2,FALSE))," ",VLOOKUP(E179,تعريفات!$A$2:$B$600,2,FALSE)) -> محي الدين | G179: =IF(E179="","",IFERROR(_xlfn.SINGLE(Singlecellextract(F179,تعريفات!$B$2:$C$1000,2)),"")) -> 61598 | H179: 38950 | I179: 282968 | J179: 17700 | K179: 55860 | L179: 38160 | M179: 159608 | N179: 17760 | O179: 55820 | P179: 38060 | Q179: -100
A180: 2022-01-10 | B180: 177 | C180: 9 | D180: 2022-01-10 | E180: 18 | F180: =IF(ISNA(VLOOKUP(E180,تعريفات!$A$2:$B$600,2,FALSE))," ",VLOOKUP(E180,تعريفات!$A$2:$B$600,2,FALSE)) -> خالد القيسي | G180: =IF(E180="","",IFERROR(_xlfn.SINGLE(Singlecellextract(F180,تعريفات!$B$2:$C$1000,2)),"")) -> 61622 | H180: 38951 | I180: 282971 | J180: 17600 | K180: 55660 | L180: 38060 | M180: 159614 | N180: 17560 | O180: 55540 | P180: 37980 | Q180: -80
A181: 2022-01-10 | B181: 178 | C181: 10 | D181: 2022-01-10 | E181: 6 | F181: =IF(ISNA(VLOOKUP(E181,تعريفات!$A$2:$B$600,2,FALSE))," ",VLOOKUP(E181,تعريفات!$A$2:$B$600,2,FALSE)) -> منيف عايد | G181: =IF(E181="","",IFERROR(_xlfn.SINGLE(Singlecellextract(F181,تعريفات!$B$2:$C$1000,2)),"")) -> 61463, 61604, 61457, 61460, 59481, 61601 | H181: 38952 | I181: 282973 | J181: 17360 | K181: 55600 | L181: 38240 | M181: 159606 | N181: 17300 | O181: 55540 | P181: 38240 | Q181: 0
A182: 2022-01-10 | B182: 179 | C182: 11 | D182: 2022-01-10 | E182: 13 | F182: =IF(ISNA(VLOOKUP(E182,تعريفات!$A$2:$B$600,2,FALSE))," ",VLOOKUP(E182,تعريفات!$A$2:$B$600,2,FALSE)) -> فندي محمد | G182: =IF(E182="","",IFERROR(_xlfn.SINGLE(Singlecellextract(F182,تعريفات!$B$2:$C$1000,2)),"")) -> 61601, 6567, 59484 | H182: 38953 | I182: 282974 | J182: 17160 | K182: 55620 | L182: 38460 | M182: 159607 | N182: 17180 | O182: 55620 | P182: 38440 | Q182: -20
A183: 2022-01-10 | B183: 180 | C183: 12 | D183: 2022-01-10 | E183: 16 | F183: =IF(ISNA(VLOOKUP(E183,تعريفات!$A$2:$B$600,2,FALSE))," ",VLOOKUP(E183,تعريفات!$A$2:$B$600,2,FALSE)) -> حسين اللوافية | G183: =IF(E183="","",IFERROR(_xlfn.SINGLE(Singlecellextract(F183,تعريفات!$B$2:$C$1000,2)),"")) -> 61589, 61625, 59481, 6567, 48581, 48610, 61610, 61619 | H183: 38954 | I183: 282977 | J183: 17080 | K183: 55480 | L183: 38400 | M183: 159629 | N183: 17080 | O183: 55400 | P183: 38320 | Q183: -80
A184: 2022-01-10 | B184: 181 | C184: 13 | D184: 2022-01-10 | E184: 8 | F184: =IF(ISNA(VLOOKUP(E184,تعريفات!$A$2:$B$600,2,FALSE))," ",VLOOKUP(E184,تعريفات!$A$2:$B$600,2,FALSE)) -> فايز علي | G184: =IF(E184="","",IFERROR(_xlfn.SINGLE(Singlecellextract(F184,تعريفات!$B$2:$C$1000,2)),"")) -> 59484 | H184: 38955 | I184: 282983 | J184: 17720 | K184: 55660 | L184: 37940 | M184: 159613 | N184: 17720 | O184: 55660 | P184: 37940 | Q184: 0
A185: 2022-01-10 | B185: 182 | C185: 14 | D185: 2022-01-10 | E185: 20 | F185: =IF(ISNA(VLOOKUP(E185,تعريفات!$A$2:$B$600,2,FALSE))," ",VLOOKUP(E185,تعريفات!$A$2:$B$600,2,FALSE)) -> عبدالله سالم | G185: =IF(E185="","",IFERROR(_xlfn.SINGLE(Singlecellextract(F185,تعريفات!$B$2:$C$1000,2)),"")) -> 61640 | H185: 38956 | I185: 282984 | J185: 17580 | K185: 55700 | L185: 38120 | M185: 159620 | N185: 17520 | O185: 55620 | P185: 38100 | Q185: -20
A186: 2022-01-10 | B186: 183 | C186: 15 | D186: 2022-01-10 | E186: 23 | F186: =IF(ISNA(VLOOKUP(E186,تعريفات!$A$2:$B$600,2,FALSE))," ",VLOOKUP(E186,تعريفات!$A$2:$B$600,2,FALSE)) -> محمد عريبان | G186: =IF(E186="","",IFERROR(_xlfn.SINGLE(Singlecellextract(F186,تعريفات!$B$2:$C$1000,2)),"")) -> 61595 | H186: 38957 | I186: 282987 | J186: 17440 | K186: 55680 | L186: 38240 | M186: 159626 | N186: 17420 | O186: 55620 | P186: 38200 | Q186: -40
A187: 2022-01-10 | B187: 184 | C187: 16 | D187: 2022-01-10 | E187: 28 | F187: =IF(ISNA(VLOOKUP(E187,تعريفات!$A$2:$B$600,2,FALSE))," ",VLOOKUP(E187,تعريفات!$A$2:$B$600,2,FALSE)) -> رفيق البدور | G187: =IF(E187="","",IFERROR(_xlfn.SINGLE(Singlecellextract(F187,تعريفات!$B$2:$C$1000,2)),"")) -> 61631, 61604 | H187: 38958 | I187: 282992 | J187: 17300 | K187: 55560 | L187: 38260 | M187: 159622 | N187: 17160 | O187: 55360 | P187: 38200 | Q187: -60
A188: 2022-01-10 | B188: 185 | C188: 17 | D188: 2022-01-10 | E188: 3 | F188: =IF(ISNA(VLOOKUP(E188,تعريفات!$A$2:$B$600,2,FALSE))," ",VLOOKUP(E188,تعريفات!$A$2:$B$600,2,FALSE)) -> جهاد شاهين | G188: =IF(E188="","",IFERROR(_xlfn.SINGLE(Singlecellextract(F188,تعريفات!$B$2:$C$1000,2)),"")) -> 59490 | H188: 38959 | I188: 282997 | J188: 17820 | K188: 55580 | L188: 37760 | M188: 159633 | N188: 17780 | O188: 55480 | P188: 37700 | Q188: -60
A189: 2022-01-11 | B189: 186 | C189: 1 | D189: 2022-01-11 | E189: 10 | F189: =IF(ISNA(VLOOKUP(E189,تعريفات!$A$2:$B$600,2,FALSE))," ",VLOOKUP(E189,تعريفات!$A$2:$B$600,2,FALSE)) -> فؤاد عيسى | G189: =IF(E189="","",IFERROR(_xlfn.SINGLE(Singlecellextract(F189,تعريفات!$B$2:$C$1000,2)),"")) -> 61586 | H189: 38960 | I189: 283087 | J189: 17400 | K189: 55460 | L189: 38060 | M189: 159642 | N189: 17420 | O189: 55460 | P189: 38040 | Q189: -20
A190: 2022-01-11 | B190: 187 | C190: 2 | D190: 2022-01-11 | E190: 24 | F190: =IF(ISNA(VLOOKUP(E190,تعريفات!$A$2:$B$600,2,FALSE))," ",VLOOKUP(E190,تعريفات!$A$2:$B$600,2,FALSE)) -> هايل الركيبات | G190: =IF(E190="","",IFERROR(_xlfn.SINGLE(Singlecellextract(F190,تعريفات!$B$2:$C$1000,2)),"")) -> 61610 | H190: 38961 | I190: 283090 | J190: 17600 | K190: 55480 | L190: 37880 | M190: 159643 | N190: 17460 | O190: 55260 | P190: 37800 | Q190: -80
A191: 2022-01-11 | B191: 188 | C191: 3 | D191: 2022-01-11 | E191: 27 | F191: =IF(ISNA(VLOOKUP(E191,تعريفات!$A$2:$B$600,2,FALSE))," ",VLOOKUP(E191,تعريفات!$A$2:$B$600,2,FALSE)) -> محمد سلامة | G191: =IF(E191="","",IFERROR(_xlfn.SINGLE(Singlecellextract(F191,تعريفات!$B$2:$C$1000,2)),"")) -> 59487, 61454, 39532, 61457, 59481, 61610 | H191: 38962 | I191: 283093 | J191: 17760 | K191: 55740 | L191: 37980 | M191: 159646 | N191: 17600 | O191: 55520 | P191: 37920 | Q191: -60
A192: 2022-01-11 | B192: 189 | C192: 4 | D192: 2022-01-11 | E192: 12 | F192: =IF(ISNA(VLOOKUP(E192,تعريفات!$A$2:$B$600,2,FALSE))," ",VLOOKUP(E192,تعريفات!$A$2:$B$600,2,FALSE)) -> سعيد سلمان | G192: =IF(E192="","",IFERROR(_xlfn.SINGLE(Singlecellextract(F192,تعريفات!$B$2:$C$1000,2)),"")) -> 59481 | H192: 38963 | I192: 283096 | J192: 17200 | K192: 55760 | L192: 38560 | M192: 159651 | N192: 17160 | O192: 55620 | P192: 38460 | Q192: -100
A193: 2022-01-11 | B193: 190 | C193: 5 | D193: 2022-01-11 | E193: 25 | F193: =IF(ISNA(VLOOKUP(E193,تعريفات!$A$2:$B$600,2,FALSE))," ",VLOOKUP(E193,تعريفات!$A$2:$B$600,2,FALSE)) -> صلاح الركيبات | G193: =IF(E193="","",IFERROR(_xlfn.SINGLE(Singlecellextract(F193,تعريفات!$B$2:$C$1000,2)),"")) -> 61619, 61637, 61622, 48407 | H193: 38964 | I193: 283095 | J193: 17680 | K193: 55480 | L193: 37800 | M193: 159652 | N193: 17520 | O193: 55240 | P193: 37720 | Q193: -80
A194: 2022-01-11 | B194: 191 | C194: 6 | D194: 2022-01-11 | E194: 17 | F194: =IF(ISNA(VLOOKUP(E194,تعريفات!$A$2:$B$600,2,FALSE))," ",VLOOKUP(E194,تعريفات!$A$2:$B$600,2,FALSE)) -> هاني محمد | G194: =IF(E194="","",IFERROR(_xlfn.SINGLE(Singlecellextract(F194,تعريفات!$B$2:$C$1000,2)),"")) -> 59478, 61631 | H194: 38965 | I194: 283097 | J194: 17760 | K194: 55780 | L194: 38020 | M194: 159647 | N194: 17600 | O194: 55600 | P194: 38000 | Q194: -20
A195: 2022-01-11 | B195: 192 | C195: 7 | D195: 2022-01-11 | E195: 11 | F195: =IF(ISNA(VLOOKUP(E195,تعريفات!$A$2:$B$600,2,FALSE))," ",VLOOKUP(E195,تعريفات!$A$2:$B$600,2,FALSE)) -> عيد هليل | G195: =IF(E195="","",IFERROR(_xlfn.SINGLE(Singlecellextract(F195,تعريفات!$B$2:$C$1000,2)),"")) -> 61634 | H195: 38966 | I195: 283099 | J195: 17580 | K195: 55340 | L195: 37760 | M195: 159654 | N195: 171000 | O195: 55340 | P195: -115660 | Q195: -153420
A196: 2022-01-11 | B196: 193 | C196: 8 | D196: 2022-01-11 | E196: 22 | F196: =IF(ISNA(VLOOKUP(E196,تعريفات!$A$2:$B$600,2,FALSE))," ",VLOOKUP(E196,تعريفات!$A$2:$B$600,2,FALSE)) -> علي حمد | G196: =IF(E196="","",IFERROR(_xlfn.SINGLE(Singlecellextract(F196,تعريفات!$B$2:$C$1000,2)),"")) -> 61637 | H196: 38967 | I196: 283100 | J196: 17520 | K196: 55760 | L196: 38240 | M196: 159657 | N196: 17380 | O196: 55640 | P196: 38260 | Q196: =P196-L196 -> 20
A197: =D197 -> 2022-01-11 | B197: 194 | C197: 9 | D197: 2022-01-11 | E197: 23 | F197: =IF(ISNA(VLOOKUP(E197,تعريفات!$A$2:$B$600,2,FALSE))," ",VLOOKUP(E197,تعريفات!$A$2:$B$600,2,FALSE)) -> محمد عريبان | G197: =IF(E197="","",IFERROR(_xlfn.SINGLE(Singlecellextract(F197,تعريفات!$B$2:$C$1000,2)),"")) -> 61595 | H197: 38968 | I197: 283098 | J197: 17400 | K197: 55560 | L197: =K197-J197 -> 38160 | M197: 159656 | N197: 17440 | O197: 55520 | P197: 38080 | Q197: -80
A198: 2022-01-11 | B198: =B197+1 -> 195 | C198: 10 | D198: 2022-01-11 | E198: 29 | F198: =IF(ISNA(VLOOKUP(E198,تعريفات!$A$2:$B$600,2,FALSE))," ",VLOOKUP(E198,تعريفات!$A$2:$B$600,2,FALSE)) -> محمد المغربي | G198: =IF(E198="","",IFERROR(_xlfn.SINGLE(Singlecellextract(F198,تعريفات!$B$2:$C$1000,2)),"")) -> 61451 | H198: 38969 | I198: 283105 | J198: 17840 | K198: 55560 | L198: 37720 | M198: 159655 | N198: 17700 | O198: 55300 | P198: =O198-N198 -> 37600 | Q198: -120
A199: 2022-01-11 | B199: 196 | C199: 11 | D199: 2022-01-11 | E199: 9 | F199: =IF(ISNA(VLOOKUP(E199,تعريفات!$A$2:$B$600,2,FALSE))," ",VLOOKUP(E199,تعريفات!$A$2:$B$600,2,FALSE)) -> سليمان خضير | G199: =IF(E199="","",IFERROR(_xlfn.SINGLE(Singlecellextract(F199,تعريفات!$B$2:$C$1000,2)),"")) -> 61580, 61631 | H199: 38970 | I199: 283109 | J199: 17840 | K199: 55620 | L199: 37780 | M199: 159659 | N199: 17700 | O199: 55380 | P199: 37680 | Q199: -100
A200: 2022-01-11 | B200: 197 | C200: 12 | D200: 2022-01-11 | E200: 8 | F200: =IF(ISNA(VLOOKUP(E200,تعريفات!$A$2:$B$600,2,FALSE))," ",VLOOKUP(E200,تعريفات!$A$2:$B$600,2,FALSE)) -> فايز علي | G200: =IF(E200="","",IFERROR(_xlfn.SINGLE(Singlecellextract(F200,تعريفات!$B$2:$C$1000,2)),"")) -> 59484 | H200: 38971 | I200: 283110 | J200: 17700 | K200: 55800 | L200: 38100 | M200: 159658 | N200: 17720 | O200: 55860 | P200: 38140 | Q200: 40
A201: 2022-01-11 | B201: 198 | C201: 13 | D201: 2022-01-11 | E201: 18 | F201: =IF(ISNA(VLOOKUP(E201,تعريفات!$A$2:$B$600,2,FALSE))," ",VLOOKUP(E201,تعريفات!$A$2:$B$600,2,FALSE)) -> خالد القيسي | G201: =IF(E201="","",IFERROR(_xlfn.SINGLE(Singlecellextract(F201,تعريفات!$B$2:$C$1000,2)),"")) -> 61622 | H201: 38972 | I201: 283116 | J201: 17540 | K201: 55400 | L201: 37860 | M201: 159670 | N201: 17560 | O201: 55360 | P201: 37800 | Q201: -60
... 801 more rows
